OrganisationNameLabel,OrganisationURI,EffectiveDate,Directorate/ServiceWhereExpenditureIncurred,ServiceCategoryLabel,ServiceCategoryURI,Supplier,SupplierRegisteredCompany Number,PaymentDate,TransactionNumber,NetAmount,IrrecoverableVAT,PurposeOfSpend,ProcurementClassification:ProclassLabel,ProcrementClassification:ProClassCode
South Lakeland District Council,http://opendatacommunities.org/id/district-council/south-lakeland,30/06/2018,Policy & Partnerships,Central Services,http://opendatacommunities.org/def/concept/finance/sercop/objective/102,MERITEC LTD,03224622,18-06-2018,0000074442,10400,0,16 Days Consultancy for the development,391200,Construction Engineering
South Lakeland District Council,http://opendatacommunities.org/id/district-council/south-lakeland,30/06/2018,Electoral Services,Central Services,http://opendatacommunities.org/def/concept/finance/sercop/objective/102,GATES TRAVEL SERVICE,,04-06-2018,0000077935,280.6,0,2 x train tickets Oxenholme - London,261600,HR Travel & Subsistence
South Lakeland District Council,http://opendatacommunities.org/id/district-council/south-lakeland,30/06/2018,ICT Group,Central Services,http://opendatacommunities.org/def/concept/finance/sercop/objective/102,Insight Direct (Uk) Ltd,2579852,06-06-2018,0000077968,176.92,0,"SEE-NEW-AG-1-24-B Endpoint Encryption,",271200,ICT Hardware
South Lakeland District Council,http://opendatacommunities.org/id/district-council/south-lakeland,30/06/2018,Democratic and Member Services,Cultural Environmental Regulatory & Planning Services,http://opendatacommunities.org/def/concept/finance/sercop/objective/104,GRANTS- MISCELLANEOUS,,11-06-2018,0000078029,100,0,Locality donation to support a project,201700,Financial Services Grants
South Lakeland District Council,http://opendatacommunities.org/id/district-council/south-lakeland,30/06/2018,Printing Section,Central Services,http://opendatacommunities.org/def/concept/finance/sercop/objective/102,MORGANA SYSTEMS LTD,01335508,06-06-2018,0000078036,496.08,0,New Drive Motor for Booklet Maker,191600,Facilities Printing
South Lakeland District Council,http://opendatacommunities.org/id/district-council/south-lakeland,30/06/2018,Revenues and Benefits,Central Services,http://opendatacommunities.org/def/concept/finance/sercop/objective/102,CIVICA UK LTD,01628868,04-06-2018,0000078041,1350,0,Continuation of CFS Fraud - With update,271600,ICT Software Customised & Bespoke
South Lakeland District Council,http://opendatacommunities.org/id/district-council/south-lakeland,30/06/2018,Business Support Community Services,Cultural Environmental Regulatory & Planning Services,http://opendatacommunities.org/def/concept/finance/sercop/objective/104,WINDERMERE TOWN COUNCIL,,04-06-2018,0000078048,8000,0,2017-18 contribution to Windermere,908000,Public Bodies Council support services
South Lakeland District Council,http://opendatacommunities.org/id/district-council/south-lakeland,30/06/2018,Development Implementation,Central Services,http://opendatacommunities.org/def/concept/finance/sercop/objective/102,ADECCO UK LIMITED,00593232,06-06-2018,0000078063,76.56,0,Cleaner for SLDC - S D - April 2018,261400,HR Temporary & Agency Staff
South Lakeland District Council,http://opendatacommunities.org/id/district-council/south-lakeland,30/06/2018,Development Implementation,Central Services,http://opendatacommunities.org/def/concept/finance/sercop/objective/102,ADECCO UK LIMITED,00593232,06-06-2018,0000078064,261.58,0,Cleaner for SLDC - M P - April,261400,HR Temporary & Agency Staff
South Lakeland District Council,http://opendatacommunities.org/id/district-council/south-lakeland,30/06/2018,Business Support Community Services,Housing Services,http://opendatacommunities.org/def/concept/finance/sercop/objective/108,Ashberry Recruitment,07202591,04-06-2018,0000078072,952.31,0,Agency Support Staff at Town View Fields,261300,HR Recruitment & Assessment
South Lakeland District Council,http://opendatacommunities.org/id/district-council/south-lakeland,30/06/2018,Environment and Housing,Housing Services,http://opendatacommunities.org/def/concept/finance/sercop/objective/108,KENDAL SECURITY CENTRE LTD,03179893,11-06-2018,0000078074,30,0,Keys cut for TVF Hostel - 2 keys,192212,Facilities Security Equipment
South Lakeland District Council,http://opendatacommunities.org/id/district-council/south-lakeland,30/06/2018,Business Support Community Services,Cultural Environmental Regulatory & Planning Services,http://opendatacommunities.org/def/concept/finance/sercop/objective/104,UNITED UTILITIES WATER PLC,2366678,13-06-2018,0000078084,1247.82,0,Private Water Analysis - March 2018,371300,Utilities Water
South Lakeland District Council,http://opendatacommunities.org/id/district-council/south-lakeland,30/06/2018,Business Support Community Services,Cultural Environmental Regulatory & Planning Services,http://opendatacommunities.org/def/concept/finance/sercop/objective/104,UNITED UTILITIES WATER PLC,2366678,13-06-2018,0000078085,1385.48,0,Private Water Analysis - April 2018,371300,Utilities Water
South Lakeland District Council,http://opendatacommunities.org/id/district-council/south-lakeland,30/06/2018,Printing Section,Central Services,http://opendatacommunities.org/def/concept/finance/sercop/objective/102,ROSEFOX PAPER LIMITED,01655083,11-06-2018,0000078093,189.08,0,SRA3 Pro Design 350gsm,341000,Stationery Paper
South Lakeland District Council,http://opendatacommunities.org/id/district-council/south-lakeland,30/06/2018,Kendal Town Hall,Central Services,http://opendatacommunities.org/def/concept/finance/sercop/objective/102,BERENDSEN UK LTD,00228604,11-06-2018,0000078114,100.64,0,Weekly cleaning and exchange of mats at,161000,Domestic Goods Commercial
South Lakeland District Council,http://opendatacommunities.org/id/district-council/south-lakeland,30/06/2018,Kendal Town Hall,Cultural Environmental Regulatory & Planning Services,http://opendatacommunities.org/def/concept/finance/sercop/objective/104,BERENDSEN UK LTD,00228604,11-06-2018,0000078114,24,0,Weekly cleaning and exchange of mats at,161000,Domestic Goods Commercial
South Lakeland District Council,http://opendatacommunities.org/id/district-council/south-lakeland,30/06/2018,Kendal Town Hall,Cultural Environmental Regulatory & Planning Services,http://opendatacommunities.org/def/concept/finance/sercop/objective/104,THE FULL OCTAVE LTD,04634955,04-06-2018,0000078152,45.83,0,Tuning the Steinway piano for Mayor,179999,Education Not Elsewhere Classified
South Lakeland District Council,http://opendatacommunities.org/id/district-council/south-lakeland,30/06/2018,Lake Wardens,Cultural Environmental Regulatory & Planning Services,http://opendatacommunities.org/def/concept/finance/sercop/objective/104,VODAFONE LIMITED,01471587,04-06-2018,0000078153,30.29,0,Final Invoice for Staff Mobile Phone,271800,ICT Telecommunications Mobile
South Lakeland District Council,http://opendatacommunities.org/id/district-council/south-lakeland,30/06/2018,Business Support Community Services,Internal Trading Accounts,,ALAN MYERSCOUGH LTD,02027076,04-06-2018,0000078154,175.53,0,VAT,381400,Vehicle Mgt Maintenance
South Lakeland District Council,http://opendatacommunities.org/id/district-council/south-lakeland,30/06/2018,Environment and Housing,Housing Services,http://opendatacommunities.org/def/concept/finance/sercop/objective/108,Landlord,,04-06-2018,0000078155,500,0,"Monthly rent ,",202000,Financial Services Rents
South Lakeland District Council,http://opendatacommunities.org/id/district-council/south-lakeland,30/06/2018,Business Support Community Services,Internal Trading Accounts,,TPS Preston,,04-06-2018,0000078156,39.33,0,Parts,381400,Vehicle Mgt Maintenance
South Lakeland District Council,http://opendatacommunities.org/id/district-council/south-lakeland,30/06/2018,Environment and Housing,Housing Services,http://opendatacommunities.org/def/concept/finance/sercop/objective/108,Landlord,07009105,04-06-2018,0000078157,480,0,"Monthly rent ,",250000,Housing
South Lakeland District Council,http://opendatacommunities.org/id/district-council/south-lakeland,30/06/2018,Business Support Community Services,Internal Trading Accounts,,Harry Park Tyres Ltd,08131208,04-06-2018,0000078158,1475,0,Tyres,381500,Vehicle Mgt Parts
South Lakeland District Council,http://opendatacommunities.org/id/district-council/south-lakeland,30/06/2018,Business Support Community Services,Cultural Environmental Regulatory & Planning Services,http://opendatacommunities.org/def/concept/finance/sercop/objective/104,ARCO LIMITED,00133804,04-06-2018,0000078159,8.08,0,Cleaning materials,141100,Clothing Protective
South Lakeland District Council,http://opendatacommunities.org/id/district-council/south-lakeland,30/06/2018,Business Support Community Services,Internal Trading Accounts,,M G D LTD,,04-06-2018,0000078161,35,0,MOTs 2018/19,381400,Vehicle Mgt Maintenance
South Lakeland District Council,http://opendatacommunities.org/id/district-council/south-lakeland,30/06/2018,Business Support Community Services,Internal Trading Accounts,,INNOVATIVE SAFETY SYSTEMS LTD,06875015,04-06-2018,0000078162,1385,0,Reaclear systems,192200,Facilities Security
South Lakeland District Council,http://opendatacommunities.org/id/district-council/south-lakeland,30/06/2018,Human Resources,Central Services,http://opendatacommunities.org/def/concept/finance/sercop/objective/102,JGP RESOURCING LTD,07750971,06-06-2018,0000078163,1698,0,ICT advertising may-june,261500,HR Training & Conferences
South Lakeland District Council,http://opendatacommunities.org/id/district-council/south-lakeland,30/06/2018,Leisure and Wellbeing,Cultural Environmental Regulatory & Planning Services,http://opendatacommunities.org/def/concept/finance/sercop/objective/104,THE SIGN MAN,05748839,04-06-2018,0000078164,150,0,2 A2 signs with fixing channel as,102400,Building Signage
South Lakeland District Council,http://opendatacommunities.org/id/district-council/south-lakeland,30/06/2018,ICT Group,Central Services,http://opendatacommunities.org/def/concept/finance/sercop/objective/102,MLL Telecom Ltd,02657917,04-06-2018,0000078165,26682,0,South Lakeland House - MPLS connection,271700,ICT Telecommunications Fixed
South Lakeland District Council,http://opendatacommunities.org/id/district-council/south-lakeland,30/06/2018,Business Support Community Services,Internal Trading Accounts,,TAYLOR ENGINEERING & FABRICATIONS LTD,04989359,04-06-2018,0000078167,80.65,0,Parts,391200,Construction Engineering
South Lakeland District Council,http://opendatacommunities.org/id/district-council/south-lakeland,30/06/2018,Business Support Community Services,Cultural Environmental Regulatory & Planning Services,http://opendatacommunities.org/def/concept/finance/sercop/objective/104,BRIAN ARMISTEAD LTD T/A SINKFALL RECYCLI,04133280,04-06-2018,0000078168,3026.77,0,Green waste tipping - 2018/19,391110,Construction Buildings Construction
South Lakeland District Council,http://opendatacommunities.org/id/district-council/south-lakeland,30/06/2018,Business Support Community Services,Internal Trading Accounts,,GARWOOD EUROPE LTD,04333504,04-06-2018,0000078169,72.08,0,Relays,182011,Environment Waste Management Consumables
South Lakeland District Council,http://opendatacommunities.org/id/district-council/south-lakeland,30/06/2018,Business Support Community Services,Cultural Environmental Regulatory & Planning Services,http://opendatacommunities.org/def/concept/finance/sercop/objective/104,Masterstaff Limited,02777593,04-06-2018,0000078170,5375.1,0,Agency staff,261300,HR Recruitment & Assessment
South Lakeland District Council,http://opendatacommunities.org/id/district-council/south-lakeland,30/06/2018,Business Support Community Services,Cultural Environmental Regulatory & Planning Services,http://opendatacommunities.org/def/concept/finance/sercop/objective/104,Gemco Equipment Ltd,04666699,04-06-2018,0000078171,853.12,0,Airline repair,381400,Vehicle Mgt Maintenance
South Lakeland District Council,http://opendatacommunities.org/id/district-council/south-lakeland,30/06/2018,Environment and Housing,Housing Services,http://opendatacommunities.org/def/concept/finance/sercop/objective/108,Landlord,,04-06-2018,0000078172,415,0,"Monthly rent ,",250010,Housing Letting Agents
South Lakeland District Council,http://opendatacommunities.org/id/district-council/south-lakeland,30/06/2018,Cemeteries Office,Cultural Environmental Regulatory & Planning Services,http://opendatacommunities.org/def/concept/finance/sercop/objective/104,CUMBRIA WASTE RECYCLING LTD,03162439,04-06-2018,0000078173,108.4,0,Cemetery Bin Emptying 2018,182012,Environment Waste Management Recycling
South Lakeland District Council,http://opendatacommunities.org/id/district-council/south-lakeland,30/06/2018,Cemeteries Office,Cultural Environmental Regulatory & Planning Services,http://opendatacommunities.org/def/concept/finance/sercop/objective/104,CUMBRIA WASTE RECYCLING LTD,03162439,04-06-2018,0000078174,83.5,0,Cemetery Bin Emptying 2018,182012,Environment Waste Management Recycling
South Lakeland District Council,http://opendatacommunities.org/id/district-council/south-lakeland,30/06/2018,Environment and Housing,Housing Services,http://opendatacommunities.org/def/concept/finance/sercop/objective/108,Landlord,,04-06-2018,0000078175,520,0,Monthly rent,250000,Housing
South Lakeland District Council,http://opendatacommunities.org/id/district-council/south-lakeland,30/06/2018,Cemeteries Office,Cultural Environmental Regulatory & Planning Services,http://opendatacommunities.org/def/concept/finance/sercop/objective/104,CUMBRIA WASTE RECYCLING LTD,03162439,04-06-2018,0000078176,86.84,0,Cemetery Bin Emptying 2018,182012,Environment Waste Management Recycling
South Lakeland District Council,http://opendatacommunities.org/id/district-council/south-lakeland,30/06/2018,Environment and Housing,Housing Services,http://opendatacommunities.org/def/concept/finance/sercop/objective/108,Landlord,,04-06-2018,0000078177,400,0,"Monthly rent ,",250000,Housing
South Lakeland District Council,http://opendatacommunities.org/id/district-council/south-lakeland,30/06/2018,Environment and Housing,Housing Services,http://opendatacommunities.org/def/concept/finance/sercop/objective/108,Landlord,,04-06-2018,0000078178,410,0,"Monthly rent ,",250000,Housing
South Lakeland District Council,http://opendatacommunities.org/id/district-council/south-lakeland,30/06/2018,Human Resources,Central Services,http://opendatacommunities.org/def/concept/finance/sercop/objective/102,FORBES SOLICITORS,,06-06-2018,0000078183,403,0,Legal Advice,281300,Legal Services Legal Opinion
South Lakeland District Council,http://opendatacommunities.org/id/district-council/south-lakeland,30/06/2018,Financial Services,Central Services,http://opendatacommunities.org/def/concept/finance/sercop/objective/102,BOTTOMLINE TECHNOLOGIES EUROPE LTD,03693514,04-06-2018,0000078184,1717.86,0,CSeries annual maintenance 14 June 2018,271600,ICT Software Customised & Bespoke
South Lakeland District Council,http://opendatacommunities.org/id/district-council/south-lakeland,30/06/2018,Policy & Partnerships,Central Services,http://opendatacommunities.org/def/concept/finance/sercop/objective/102,District Councils' Network,,04-06-2018,0000078185,500,0,SLDC Annual subscription 2018/19 to,202100,Financial Services Subscriptions
South Lakeland District Council,http://opendatacommunities.org/id/district-council/south-lakeland,30/06/2018,Environment and Housing,Housing Services,http://opendatacommunities.org/def/concept/finance/sercop/objective/108,James Andrews Recruitment Solutions,06834852,06-06-2018,0000078187,960.03,0,Payment for JH,261400,HR Temporary & Agency Staff
South Lakeland District Council,http://opendatacommunities.org/id/district-council/south-lakeland,30/06/2018,Policy & Partnerships,Central Services,http://opendatacommunities.org/def/concept/finance/sercop/objective/102,NORTHGATE VEHICLE HIRE LTD,01434157,06-06-2018,0000078195,15.87,0,Car hire for D S 29-05-18,381600,Vehicle Mgt Leasing
South Lakeland District Council,http://opendatacommunities.org/id/district-council/south-lakeland,30/06/2018,Financial Services,Central Services,http://opendatacommunities.org/def/concept/finance/sercop/objective/102,TIAA Ltd,04546319,06-06-2018,0000078196,6566.6,0,17/18 Internal Audit,201100,Financial Services Audit
South Lakeland District Council,http://opendatacommunities.org/id/district-council/south-lakeland,30/06/2018,Business Support Community Services,Housing Services,http://opendatacommunities.org/def/concept/finance/sercop/objective/108,Ashberry Recruitment,07202591,11-06-2018,0000078197,907.49,0,Agency Support Staff at Town View Fields,261300,HR Recruitment & Assessment
South Lakeland District Council,http://opendatacommunities.org/id/district-council/south-lakeland,30/06/2018,Business Support Community Services,Cultural Environmental Regulatory & Planning Services,http://opendatacommunities.org/def/concept/finance/sercop/objective/104,South Lakes Citizens Advice Bureau,06113551,06-06-2018,0000078198,69300,0,18-19 community grants contribution to,261200,HR Professional & Advisory Services
South Lakeland District Council,http://opendatacommunities.org/id/district-council/south-lakeland,30/06/2018,Development Implementation,Central Services,http://opendatacommunities.org/def/concept/finance/sercop/objective/102,ADECCO UK LIMITED,00593232,06-06-2018,0000078201,76.56,0,Cleaner for SLDC - S D - April 2018,261400,HR Temporary & Agency Staff
South Lakeland District Council,http://opendatacommunities.org/id/district-council/south-lakeland,30/06/2018,Development Implementation,Central Services,http://opendatacommunities.org/def/concept/finance/sercop/objective/102,ADECCO UK LIMITED,00593232,06-06-2018,0000078205,306.24,0,Cleaner for SLDC - M P - April,261400,HR Temporary & Agency Staff
South Lakeland District Council,http://opendatacommunities.org/id/district-council/south-lakeland,30/06/2018,Revenues and Benefits,Central Services,http://opendatacommunities.org/def/concept/finance/sercop/objective/102,ALLPAY.NET LTD (NCR),6871069,01-06-2018,0000078206,354.53,0,2018 - 19 Allpay - Internet Payment /,209999,Financial Services Not Elsewhere Classif
South Lakeland District Council,http://opendatacommunities.org/id/district-council/south-lakeland,30/06/2018,Revenues and Benefits,Central Services,http://opendatacommunities.org/def/concept/finance/sercop/objective/102,ALLPAY.NET LTD (NCR),6871069,01-06-2018,0000078207,14.82,0,2018 - 19 Allpay - Internet Payment /,209999,Financial Services Not Elsewhere Classif
South Lakeland District Council,http://opendatacommunities.org/id/district-council/south-lakeland,30/06/2018,Revenues and Benefits,Central Services,http://opendatacommunities.org/def/concept/finance/sercop/objective/102,ALLPAY.NET LTD (NCR),6871069,01-06-2018,0000078208,958.17,0,2018 - 19 Allpay - Internet Payment /,209999,Financial Services Not Elsewhere Classif
South Lakeland District Council,http://opendatacommunities.org/id/district-council/south-lakeland,30/06/2018,Lake Wardens,Cultural Environmental Regulatory & Planning Services,http://opendatacommunities.org/def/concept/finance/sercop/objective/104,THOMAS GRAHAM & SONS LTD,00656879,06-06-2018,0000078209,62,0,0.15 (1000mm) of 88.9 ODx3.0 C/F CHS,101400,Building General Materials
South Lakeland District Council,http://opendatacommunities.org/id/district-council/south-lakeland,30/06/2018,Lake Wardens,Cultural Environmental Regulatory & Planning Services,http://opendatacommunities.org/def/concept/finance/sercop/objective/104,THOMAS GRAHAM & SONS LTD,00656879,06-06-2018,0000078209,3.33,0,0.15 (1000mm) of 88.9 ODx3.0 C/F CHS,101400,Building General Materials
South Lakeland District Council,http://opendatacommunities.org/id/district-council/south-lakeland,30/06/2018,Social Enterprise Admin,Highways & Transport Services,http://opendatacommunities.org/def/concept/finance/sercop/objective/107,THOMAS GRAHAM & SONS LTD,00656879,06-06-2018,0000078210,29.99,0,1 Lobby Dustpan Stainless Steel CA001,101400,Building General Materials
South Lakeland District Council,http://opendatacommunities.org/id/district-council/south-lakeland,30/06/2018,Revenues and Benefits,Central Services,http://opendatacommunities.org/def/concept/finance/sercop/objective/102,ALLPAY.NET LTD (NCR),6871069,01-06-2018,0000078211,25.09,0,2018 - 19 Allpay - Internet Payment /,209999,Financial Services Not Elsewhere Classif
South Lakeland District Council,http://opendatacommunities.org/id/district-council/south-lakeland,30/06/2018,Revenues and Benefits,Central Services,http://opendatacommunities.org/def/concept/finance/sercop/objective/102,ALLPAY.NET LTD (NCR),6871069,01-06-2018,0000078212,14.81,0,2018 - 19 Allpay - Internet Payment /,209999,Financial Services Not Elsewhere Classif
South Lakeland District Council,http://opendatacommunities.org/id/district-council/south-lakeland,30/06/2018,Revenues and Benefits,Central Services,http://opendatacommunities.org/def/concept/finance/sercop/objective/102,ALLPAY.NET LTD (NCR),6871069,01-06-2018,0000078213,12.78,0,2018 - 19 Allpay - Internet Payment /,209999,Financial Services Not Elsewhere Classif
South Lakeland District Council,http://opendatacommunities.org/id/district-council/south-lakeland,30/06/2018,Lake Wardens,Cultural Environmental Regulatory & Planning Services,http://opendatacommunities.org/def/concept/finance/sercop/objective/104,THOMAS GRAHAM & SONS LTD,00656879,06-06-2018,0000078214,39.36,0,1 x Milwaukee PZ2 25mm Tic Tac Box,101400,Building General Materials
South Lakeland District Council,http://opendatacommunities.org/id/district-council/south-lakeland,30/06/2018,Revenues and Benefits,Central Services,http://opendatacommunities.org/def/concept/finance/sercop/objective/102,ALLPAY.NET LTD (NCR),6871069,01-06-2018,0000078215,10.86,0,2018 - 19 Allpay - Internet Payment /,209999,Financial Services Not Elsewhere Classif
South Lakeland District Council,http://opendatacommunities.org/id/district-council/south-lakeland,30/06/2018,Revenues and Benefits,Central Services,http://opendatacommunities.org/def/concept/finance/sercop/objective/102,ALLPAY.NET LTD (NCR),6871069,01-06-2018,0000078217,17.28,0,2018 - 19 Allpay - Internet Payment /,209999,Financial Services Not Elsewhere Classif
South Lakeland District Council,http://opendatacommunities.org/id/district-council/south-lakeland,30/06/2018,Development Implementation,Central Services,http://opendatacommunities.org/def/concept/finance/sercop/objective/102,THOMAS GRAHAM & SONS LTD,00656879,06-06-2018,0000078219,405.94,0,Lemon Floor Gell (5 litre) - 1 box of 2,101400,Building General Materials
South Lakeland District Council,http://opendatacommunities.org/id/district-council/south-lakeland,30/06/2018,Development Implementation,Cultural Environmental Regulatory & Planning Services,http://opendatacommunities.org/def/concept/finance/sercop/objective/104,THOMAS GRAHAM & SONS LTD,00656879,27-06-2018,0000078221,128.91,0,C Fold Paperhand Towels Blue 1 Ply x 3,101400,Building General Materials
South Lakeland District Council,http://opendatacommunities.org/id/district-council/south-lakeland,30/06/2018,Kendal Town Hall,External Trading Accounts,,THOMAS GRAHAM & SONS LTD,00656879,11-06-2018,0000078222,8.52,0,2 large PVC sets of gloves for KTH,101400,Building General Materials
South Lakeland District Council,http://opendatacommunities.org/id/district-council/south-lakeland,30/06/2018,Kendal Town Hall,Cultural Environmental Regulatory & Planning Services,http://opendatacommunities.org/def/concept/finance/sercop/objective/104,THOMAS GRAHAM & SONS LTD,00656879,11-06-2018,0000078222,6.32,0,2 large PVC sets of gloves for KTH,101400,Building General Materials
South Lakeland District Council,http://opendatacommunities.org/id/district-council/south-lakeland,30/06/2018,Development Implementation,Cultural Environmental Regulatory & Planning Services,http://opendatacommunities.org/def/concept/finance/sercop/objective/104,THOMAS GRAHAM & SONS LTD,00656879,11-06-2018,0000078223,40.98,0,Supply of 6 pack packs of Toilet Roll,101400,Building General Materials
South Lakeland District Council,http://opendatacommunities.org/id/district-council/south-lakeland,30/06/2018,Kendal Town Hall,Cultural Environmental Regulatory & Planning Services,http://opendatacommunities.org/def/concept/finance/sercop/objective/104,THOMAS GRAHAM & SONS LTD,00656879,11-06-2018,0000078224,164.69,0,Red Biowipes - Per Box,101400,Building General Materials
South Lakeland District Council,http://opendatacommunities.org/id/district-council/south-lakeland,30/06/2018,Lake Wardens,Cultural Environmental Regulatory & Planning Services,http://opendatacommunities.org/def/concept/finance/sercop/objective/104,THOMAS GRAHAM & SONS LTD,00656879,27-06-2018,0000078225,88.37,0,0.15 (1000mm) of 88.9 ODx3.0 C/F CHS,101400,Building General Materials
South Lakeland District Council,http://opendatacommunities.org/id/district-council/south-lakeland,30/06/2018,Business Support Community Services,Cultural Environmental Regulatory & Planning Services,http://opendatacommunities.org/def/concept/finance/sercop/objective/104,Sefton Metropolitan Borough Council,,06-06-2018,0000078230,151,0,TO PAY VAT ONLY INVOICE -,182030,Environment Water Assessment & Treatment
South Lakeland District Council,http://opendatacommunities.org/id/district-council/south-lakeland,30/06/2018,Revenues and Benefits,SLDC as Agent,,ROYAL MAIL GROUP PLC,,06-06-2018,0000078231,97,0,Response services account 0917139003,301200,Mail Services� Postage
South Lakeland District Council,http://opendatacommunities.org/id/district-council/south-lakeland,30/06/2018,Social Enterprise Admin,Cultural Environmental Regulatory & Planning Services,http://opendatacommunities.org/def/concept/finance/sercop/objective/104,FURNESS NEWSPAPERS LTD,01155841,13-06-2018,0000078232,129.84,0,PUBLIC NOTICES FOR PLANNING 1 APRIL 2015,191000,Facilities Advertising
South Lakeland District Council,http://opendatacommunities.org/id/district-council/south-lakeland,30/06/2018,Business Support Community Services,Cultural Environmental Regulatory & Planning Services,http://opendatacommunities.org/def/concept/finance/sercop/objective/104,WESTMORLAND VETERINARY GROUP,,25-06-2018,0000078233,189.53,0,Vet Inspections for Licensing,181500,Environment Animal Services
South Lakeland District Council,http://opendatacommunities.org/id/district-council/south-lakeland,30/06/2018,ICT Group,Central Services,http://opendatacommunities.org/def/concept/finance/sercop/objective/102,Insight Direct (Uk) Ltd,2579852,20-06-2018,0000078234,1712.76,0,7 ipads,271200,ICT Hardware
South Lakeland District Council,http://opendatacommunities.org/id/district-council/south-lakeland,30/06/2018,Revenues and Benefits,SLDC as Agent,,ROYAL MAIL GROUP PLC,,06-06-2018,0000078235,2313.11,0,2018-19 Postal Charges a/c 0198123013,301200,Mail Services� Postage
South Lakeland District Council,http://opendatacommunities.org/id/district-council/south-lakeland,30/06/2018,Revenues and Benefits,Central Services,http://opendatacommunities.org/def/concept/finance/sercop/objective/102,ROYAL MAIL GROUP PLC,,06-06-2018,0000078236,47.34,0,2018-19 Postal Charges a/c 0055114000,301200,Mail Services� Postage
South Lakeland District Council,http://opendatacommunities.org/id/district-council/south-lakeland,30/06/2018,Kendal Town Hall,Cultural Environmental Regulatory & Planning Services,http://opendatacommunities.org/def/concept/finance/sercop/objective/104,PIONEER CONTRACT FURNITURE LTD,07081672,06-06-2018,0000078237,232.5,0,30 links for the Assembly Room Chairs,211100,Furniture & Soft Furn Domestic Furniture
South Lakeland District Council,http://opendatacommunities.org/id/district-council/south-lakeland,30/06/2018,Social Enterprise Admin,Highways & Transport Services,http://opendatacommunities.org/def/concept/finance/sercop/objective/107,METRIC GROUP LIMITED,02560839,06-06-2018,0000078238,693,0,Web hosting and web tariff editor for,359999,Street & Traffic Not Elsewhere Classifie
South Lakeland District Council,http://opendatacommunities.org/id/district-council/south-lakeland,30/06/2018,Kendal Town Hall,Cultural Environmental Regulatory & Planning Services,http://opendatacommunities.org/def/concept/finance/sercop/objective/104,ALEXANDRA PLC,,06-06-2018,0000078241,53.25,0,5 navy easy care short sleeved shirts,141300,Clothing Uniforms
South Lakeland District Council,http://opendatacommunities.org/id/district-council/south-lakeland,30/06/2018,Revenues and Benefits,Central Services,http://opendatacommunities.org/def/concept/finance/sercop/objective/102,EDEN DISTRICT COUNCIL,,06-06-2018,0000078242,1817.64,0,Recharge for Shared Post Cost of,908000,Public Bodies Council support services
South Lakeland District Council,http://opendatacommunities.org/id/district-council/south-lakeland,30/06/2018,Business Support Community Services,Cultural Environmental Regulatory & Planning Services,http://opendatacommunities.org/def/concept/finance/sercop/objective/104,ALLSTAR BUSINESS SOLUTIONS LTD (NCR),2631112,01-06-2018,0000078243,47.73,0,Fuel - Private Water Van - 22 May 2018,381600,Vehicle Mgt Leasing
South Lakeland District Council,http://opendatacommunities.org/id/district-council/south-lakeland,30/06/2018,Development Strategy,Cultural Environmental Regulatory & Planning Services,http://opendatacommunities.org/def/concept/finance/sercop/objective/104,Programme Officer Solutions Ltd,,06-06-2018,0000078244,1075,0,Programme Officer work for AONB and DM,261413,HR- Temporary Staff- Professional
South Lakeland District Council,http://opendatacommunities.org/id/district-council/south-lakeland,30/06/2018,Development Strategy,Cultural Environmental Regulatory & Planning Services,http://opendatacommunities.org/def/concept/finance/sercop/objective/104,Programme Officer Solutions Ltd,,06-06-2018,0000078245,950,0,Programme Officer work for AONB and DM,261413,HR- Temporary Staff- Professional
South Lakeland District Council,http://opendatacommunities.org/id/district-council/south-lakeland,30/06/2018,Development Strategy,Cultural Environmental Regulatory & Planning Services,http://opendatacommunities.org/def/concept/finance/sercop/objective/104,Programme Officer Solutions Ltd,,06-06-2018,0000078246,225,0,Programme Officer work for AONB and DM,261413,HR- Temporary Staff- Professional
South Lakeland District Council,http://opendatacommunities.org/id/district-council/south-lakeland,30/06/2018,Democratic and Member Services,Central Services,http://opendatacommunities.org/def/concept/finance/sercop/objective/102,RIVERBANK HOSPITALITY CATERING,,06-06-2018,0000078247,102,0,buffet for planning committee-31 May,111000,Catering Banquet & Catering
South Lakeland District Council,http://opendatacommunities.org/id/district-council/south-lakeland,30/06/2018,Business Support Community Services,Housing Services,http://opendatacommunities.org/def/concept/finance/sercop/objective/108,HOME GROUP LTD,IP22981R,06-06-2018,0000078248,470,0,Loan payment for rent arrears,250000,Housing
South Lakeland District Council,http://opendatacommunities.org/id/district-council/south-lakeland,30/06/2018,Revenues and Benefits,Central Services,http://opendatacommunities.org/def/concept/finance/sercop/objective/102,CAPITA BUSINESS SERVICES LTD,02299747,06-06-2018,0000078251,1600,0,Benefits Consultancy Request 2 Days,261500,HR Training & Conferences
South Lakeland District Council,http://opendatacommunities.org/id/district-council/south-lakeland,30/06/2018,Revenues and Benefits,Central Services,http://opendatacommunities.org/def/concept/finance/sercop/objective/102,CAPITA BUSINESS SERVICES LTD,02299747,06-06-2018,0000078253,8000,0,Benefits Consultancy Request 15th,261500,HR Training & Conferences
South Lakeland District Council,http://opendatacommunities.org/id/district-council/south-lakeland,30/06/2018,Environment and Housing,Housing Services,http://opendatacommunities.org/def/concept/finance/sercop/objective/108,Landlord,,06-06-2018,0000078254,400,0,Monthly rent for 7 Yard 89,250000,Housing
South Lakeland District Council,http://opendatacommunities.org/id/district-council/south-lakeland,30/06/2018,Environment and Housing,Housing Services,http://opendatacommunities.org/def/concept/finance/sercop/objective/108,Blue Star Taxis (Kendal) Ltd,06464607,06-06-2018,0000078255,144.46,0,Taxis from TVF to Boots Chemist & back,361600,Public Transport Taxi Services Home to S
South Lakeland District Council,http://opendatacommunities.org/id/district-council/south-lakeland,30/06/2018,Business Support Community Services,Cultural Environmental Regulatory & Planning Services,http://opendatacommunities.org/def/concept/finance/sercop/objective/104,Carrington West,,06-06-2018,0000078257,2806.93,0,Supply of agency staff for post of,159999,Consultancy Not Elsewhere Classified
South Lakeland District Council,http://opendatacommunities.org/id/district-council/south-lakeland,30/06/2018,Development Management,Cultural Environmental Regulatory & Planning Services,http://opendatacommunities.org/def/concept/finance/sercop/objective/104,SETON,04065947,11-06-2018,0000078258,99.05,0,Barricade Tape (DANGER DO NOT ENTER),221000,Health & Safety� Products
South Lakeland District Council,http://opendatacommunities.org/id/district-council/south-lakeland,30/06/2018,Human Resources,Cultural Environmental Regulatory & Planning Services,http://opendatacommunities.org/def/concept/finance/sercop/objective/104,NEWSQUEST MEDIA GROUP LTD,03102566,06-06-2018,0000078259,720,0,LGV advert Gazette,191000,Facilities Advertising
South Lakeland District Council,http://opendatacommunities.org/id/district-council/south-lakeland,30/06/2018,Community & Housing Group,Housing Services,http://opendatacommunities.org/def/concept/finance/sercop/objective/108,GROWING CONCERNS LTD,,06-06-2018,0000078260,1971.87,0,For Handy Person Service 2018/19,391200,Construction Engineering
South Lakeland District Council,http://opendatacommunities.org/id/district-council/south-lakeland,30/06/2018,Leisure and Wellbeing,Cultural Environmental Regulatory & Planning Services,http://opendatacommunities.org/def/concept/finance/sercop/objective/104,ALLSTAR BUSINESS SOLUTIONS LTD (NCR),2631112,01-06-2018,0000078261,110.73,0,Parks fuel for April 2018 - March 2019,381600,Vehicle Mgt Leasing
South Lakeland District Council,http://opendatacommunities.org/id/district-council/south-lakeland,30/06/2018,Development Implementation,Cultural Environmental Regulatory & Planning Services,http://opendatacommunities.org/def/concept/finance/sercop/objective/104,Karl Hannah,,06-06-2018,0000078262,190,0,Virtual Tour Filming,150000,Consultancy
South Lakeland District Council,http://opendatacommunities.org/id/district-council/south-lakeland,30/06/2018,Development Implementation,Planning and Development,,John Wade Groundworks Ltd,4836715,11-06-2018,0000078263,172004.01,0,New Road Groundworks,100000,Building Construction materials
South Lakeland District Council,http://opendatacommunities.org/id/district-council/south-lakeland,30/06/2018,Development Implementation,Cultural Environmental Regulatory & Planning Services,http://opendatacommunities.org/def/concept/finance/sercop/objective/104,Helen Moriarty,,06-06-2018,0000078264,1469.65,0,Project Management Officer for,151000,Consultancy Business
South Lakeland District Council,http://opendatacommunities.org/id/district-council/south-lakeland,30/06/2018,Development Implementation,Central Services,http://opendatacommunities.org/def/concept/finance/sercop/objective/102,LAMBERT SMITH HAMPTON GROUP,2521225,06-06-2018,0000078265,604.53,0,Team Software Subscription Recharge,999999,Unclassifiable
South Lakeland District Council,http://opendatacommunities.org/id/district-council/south-lakeland,30/06/2018,Revenues and Benefits,SLDC as Agent,,ROYAL MAIL GROUP PLC,,06-06-2018,0000078266,1282.99,0,2018-19 Postal Charges a/c 0198123013,301200,Mail Services� Postage
South Lakeland District Council,http://opendatacommunities.org/id/district-council/south-lakeland,30/06/2018,Social Enterprise Admin,Cultural Environmental Regulatory & Planning Services,http://opendatacommunities.org/def/concept/finance/sercop/objective/104,NEWSQUEST MEDIA GROUP LTD,03102566,11-06-2018,0000078267,148.12,0,PUBLIC NOTICES FOR PLANNING 1 APRIL - 31,191000,Facilities Advertising
South Lakeland District Council,http://opendatacommunities.org/id/district-council/south-lakeland,30/06/2018,Social Enterprise Admin,Highways & Transport Services,http://opendatacommunities.org/def/concept/finance/sercop/objective/107,ALLSTAR BUSINESS SOLUTIONS LTD (NCR),2631112,01-06-2018,0000078271,127.07,0,Fuel for CEO vans up to 31 March 2019,381600,Vehicle Mgt Leasing
South Lakeland District Council,http://opendatacommunities.org/id/district-council/south-lakeland,30/06/2018,Social Enterprise Admin,Highways & Transport Services,http://opendatacommunities.org/def/concept/finance/sercop/objective/107,ALLSTAR BUSINESS SOLUTIONS LTD (NCR),2631112,01-06-2018,0000078271,171.9,0,Fuel for CEO vans up to 31 March 2019,381600,Vehicle Mgt Leasing
South Lakeland District Council,http://opendatacommunities.org/id/district-council/south-lakeland,30/06/2018,Social Enterprise Admin,Cultural Environmental Regulatory & Planning Services,http://opendatacommunities.org/def/concept/finance/sercop/objective/104,ALLSTAR BUSINESS SOLUTIONS LTD (NCR),2631112,01-06-2018,0000078271,70.58,0,Fuel for CEO vans up to 31 March 2019,381600,Vehicle Mgt Leasing
South Lakeland District Council,http://opendatacommunities.org/id/district-council/south-lakeland,30/06/2018,Development Strategy,Cultural Environmental Regulatory & Planning Services,http://opendatacommunities.org/def/concept/finance/sercop/objective/104,TRILITHON LTD,03390011,11-06-2018,0000078273,300,0,Stage 2 of the Consultation Database,271515,ICT Website Development
South Lakeland District Council,http://opendatacommunities.org/id/district-council/south-lakeland,30/06/2018,Development Implementation,Cultural Environmental Regulatory & Planning Services,http://opendatacommunities.org/def/concept/finance/sercop/objective/104,TRILITHON LTD,03390011,11-06-2018,0000078274,300,0,Unsubscribe Option on Leisure Events on,271515,ICT Website Development
South Lakeland District Council,http://opendatacommunities.org/id/district-council/south-lakeland,30/06/2018,Social Enterprise Admin,Highways & Transport Services,http://opendatacommunities.org/def/concept/finance/sercop/objective/107,METRIC GROUP LIMITED,02560839,20-06-2018,0000078275,115.15,0,Machine Maintenance - Beetham Road,359999,Street & Traffic Not Elsewhere Classifie
South Lakeland District Council,http://opendatacommunities.org/id/district-council/south-lakeland,30/06/2018,Social Enterprise Admin,Highways & Transport Services,http://opendatacommunities.org/def/concept/finance/sercop/objective/107,METRIC GROUP LIMITED,02560839,20-06-2018,0000078275,115.15,0,Machine Maintenance - Beetham Road,359999,Street & Traffic Not Elsewhere Classifie
South Lakeland District Council,http://opendatacommunities.org/id/district-council/south-lakeland,30/06/2018,Social Enterprise Admin,Highways & Transport Services,http://opendatacommunities.org/def/concept/finance/sercop/objective/107,METRIC GROUP LIMITED,02560839,20-06-2018,0000078275,115.15,0,Machine Maintenance - Beetham Road,359999,Street & Traffic Not Elsewhere Classifie
South Lakeland District Council,http://opendatacommunities.org/id/district-council/south-lakeland,30/06/2018,Social Enterprise Admin,Highways & Transport Services,http://opendatacommunities.org/def/concept/finance/sercop/objective/107,METRIC GROUP LIMITED,02560839,20-06-2018,0000078275,188.08,0,Machine Maintenance - Beetham Road,359999,Street & Traffic Not Elsewhere Classifie
South Lakeland District Council,http://opendatacommunities.org/id/district-council/south-lakeland,30/06/2018,Social Enterprise Admin,Highways & Transport Services,http://opendatacommunities.org/def/concept/finance/sercop/objective/107,METRIC GROUP LIMITED,02560839,20-06-2018,0000078275,188.08,0,Machine Maintenance - Beetham Road,359999,Street & Traffic Not Elsewhere Classifie
South Lakeland District Council,http://opendatacommunities.org/id/district-council/south-lakeland,30/06/2018,Social Enterprise Admin,Highways & Transport Services,http://opendatacommunities.org/def/concept/finance/sercop/objective/107,METRIC GROUP LIMITED,02560839,20-06-2018,0000078275,188.08,0,Machine Maintenance - Beetham Road,359999,Street & Traffic Not Elsewhere Classifie
South Lakeland District Council,http://opendatacommunities.org/id/district-council/south-lakeland,30/06/2018,Social Enterprise Admin,Highways & Transport Services,http://opendatacommunities.org/def/concept/finance/sercop/objective/107,METRIC GROUP LIMITED,02560839,20-06-2018,0000078275,115.15,0,Machine Maintenance - Beetham Road,359999,Street & Traffic Not Elsewhere Classifie
South Lakeland District Council,http://opendatacommunities.org/id/district-council/south-lakeland,30/06/2018,Social Enterprise Admin,Highways & Transport Services,http://opendatacommunities.org/def/concept/finance/sercop/objective/107,METRIC GROUP LIMITED,02560839,20-06-2018,0000078275,333.94,0,Machine Maintenance - Beetham Road,359999,Street & Traffic Not Elsewhere Classifie
South Lakeland District Council,http://opendatacommunities.org/id/district-council/south-lakeland,30/06/2018,Social Enterprise Admin,Highways & Transport Services,http://opendatacommunities.org/def/concept/finance/sercop/objective/107,METRIC GROUP LIMITED,02560839,20-06-2018,0000078275,188.08,0,Machine Maintenance - Beetham Road,359999,Street & Traffic Not Elsewhere Classifie
South Lakeland District Council,http://opendatacommunities.org/id/district-council/south-lakeland,30/06/2018,Social Enterprise Admin,Highways & Transport Services,http://opendatacommunities.org/def/concept/finance/sercop/objective/107,METRIC GROUP LIMITED,02560839,20-06-2018,0000078275,188.08,0,Machine Maintenance - Beetham Road,359999,Street & Traffic Not Elsewhere Classifie
South Lakeland District Council,http://opendatacommunities.org/id/district-council/south-lakeland,30/06/2018,Social Enterprise Admin,Highways & Transport Services,http://opendatacommunities.org/def/concept/finance/sercop/objective/107,METRIC GROUP LIMITED,02560839,20-06-2018,0000078275,115.15,0,Machine Maintenance - Beetham Road,359999,Street & Traffic Not Elsewhere Classifie
South Lakeland District Council,http://opendatacommunities.org/id/district-council/south-lakeland,30/06/2018,Social Enterprise Admin,Highways & Transport Services,http://opendatacommunities.org/def/concept/finance/sercop/objective/107,METRIC GROUP LIMITED,02560839,20-06-2018,0000078275,261.01,0,Machine Maintenance - Beetham Road,359999,Street & Traffic Not Elsewhere Classifie
South Lakeland District Council,http://opendatacommunities.org/id/district-council/south-lakeland,30/06/2018,Social Enterprise Admin,Highways & Transport Services,http://opendatacommunities.org/def/concept/finance/sercop/objective/107,METRIC GROUP LIMITED,02560839,20-06-2018,0000078275,115.15,0,Machine Maintenance - Beetham Road,359999,Street & Traffic Not Elsewhere Classifie
South Lakeland District Council,http://opendatacommunities.org/id/district-council/south-lakeland,30/06/2018,Social Enterprise Admin,Highways & Transport Services,http://opendatacommunities.org/def/concept/finance/sercop/objective/107,METRIC GROUP LIMITED,02560839,20-06-2018,0000078275,115.15,0,Machine Maintenance - Beetham Road,359999,Street & Traffic Not Elsewhere Classifie
South Lakeland District Council,http://opendatacommunities.org/id/district-council/south-lakeland,30/06/2018,Social Enterprise Admin,Highways & Transport Services,http://opendatacommunities.org/def/concept/finance/sercop/objective/107,METRIC GROUP LIMITED,02560839,20-06-2018,0000078275,115.15,0,Machine Maintenance - Beetham Road,359999,Street & Traffic Not Elsewhere Classifie
South Lakeland District Council,http://opendatacommunities.org/id/district-council/south-lakeland,30/06/2018,Social Enterprise Admin,Highways & Transport Services,http://opendatacommunities.org/def/concept/finance/sercop/objective/107,METRIC GROUP LIMITED,02560839,20-06-2018,0000078275,261.01,0,Machine Maintenance - Beetham Road,359999,Street & Traffic Not Elsewhere Classifie
South Lakeland District Council,http://opendatacommunities.org/id/district-council/south-lakeland,30/06/2018,Social Enterprise Admin,Highways & Transport Services,http://opendatacommunities.org/def/concept/finance/sercop/objective/107,METRIC GROUP LIMITED,02560839,20-06-2018,0000078275,115.15,0,Machine Maintenance - Beetham Road,359999,Street & Traffic Not Elsewhere Classifie
South Lakeland District Council,http://opendatacommunities.org/id/district-council/south-lakeland,30/06/2018,Social Enterprise Admin,Highways & Transport Services,http://opendatacommunities.org/def/concept/finance/sercop/objective/107,METRIC GROUP LIMITED,02560839,20-06-2018,0000078275,449.09,0,Machine Maintenance - Beetham Road,359999,Street & Traffic Not Elsewhere Classifie
South Lakeland District Council,http://opendatacommunities.org/id/district-council/south-lakeland,30/06/2018,Social Enterprise Admin,Highways & Transport Services,http://opendatacommunities.org/def/concept/finance/sercop/objective/107,METRIC GROUP LIMITED,02560839,20-06-2018,0000078275,115.15,0,Machine Maintenance - Beetham Road,359999,Street & Traffic Not Elsewhere Classifie
South Lakeland District Council,http://opendatacommunities.org/id/district-council/south-lakeland,30/06/2018,Social Enterprise Admin,Highways & Transport Services,http://opendatacommunities.org/def/concept/finance/sercop/objective/107,METRIC GROUP LIMITED,02560839,20-06-2018,0000078275,115.15,0,Machine Maintenance - Beetham Road,359999,Street & Traffic Not Elsewhere Classifie
South Lakeland District Council,http://opendatacommunities.org/id/district-council/south-lakeland,30/06/2018,Social Enterprise Admin,Highways & Transport Services,http://opendatacommunities.org/def/concept/finance/sercop/objective/107,METRIC GROUP LIMITED,02560839,20-06-2018,0000078275,115.15,0,Machine Maintenance - Beetham Road,359999,Street & Traffic Not Elsewhere Classifie
South Lakeland District Council,http://opendatacommunities.org/id/district-council/south-lakeland,30/06/2018,Social Enterprise Admin,Highways & Transport Services,http://opendatacommunities.org/def/concept/finance/sercop/objective/107,METRIC GROUP LIMITED,02560839,20-06-2018,0000078275,115.15,0,Machine Maintenance - Beetham Road,359999,Street & Traffic Not Elsewhere Classifie
South Lakeland District Council,http://opendatacommunities.org/id/district-council/south-lakeland,30/06/2018,Social Enterprise Admin,Highways & Transport Services,http://opendatacommunities.org/def/concept/finance/sercop/objective/107,METRIC GROUP LIMITED,02560839,20-06-2018,0000078275,115.15,0,Machine Maintenance - Beetham Road,359999,Street & Traffic Not Elsewhere Classifie
South Lakeland District Council,http://opendatacommunities.org/id/district-council/south-lakeland,30/06/2018,Social Enterprise Admin,Highways & Transport Services,http://opendatacommunities.org/def/concept/finance/sercop/objective/107,METRIC GROUP LIMITED,02560839,20-06-2018,0000078275,188.08,0,Machine Maintenance - Beetham Road,359999,Street & Traffic Not Elsewhere Classifie
South Lakeland District Council,http://opendatacommunities.org/id/district-council/south-lakeland,30/06/2018,Social Enterprise Admin,Highways & Transport Services,http://opendatacommunities.org/def/concept/finance/sercop/objective/107,METRIC GROUP LIMITED,02560839,20-06-2018,0000078275,188.08,0,Machine Maintenance - Beetham Road,359999,Street & Traffic Not Elsewhere Classifie
South Lakeland District Council,http://opendatacommunities.org/id/district-council/south-lakeland,30/06/2018,Social Enterprise Admin,Highways & Transport Services,http://opendatacommunities.org/def/concept/finance/sercop/objective/107,METRIC GROUP LIMITED,02560839,20-06-2018,0000078275,115.15,0,Machine Maintenance - Beetham Road,359999,Street & Traffic Not Elsewhere Classifie
South Lakeland District Council,http://opendatacommunities.org/id/district-council/south-lakeland,30/06/2018,Social Enterprise Admin,Highways & Transport Services,http://opendatacommunities.org/def/concept/finance/sercop/objective/107,METRIC GROUP LIMITED,02560839,20-06-2018,0000078275,115.15,0,Machine Maintenance - Beetham Road,359999,Street & Traffic Not Elsewhere Classifie
South Lakeland District Council,http://opendatacommunities.org/id/district-council/south-lakeland,30/06/2018,Social Enterprise Admin,Highways & Transport Services,http://opendatacommunities.org/def/concept/finance/sercop/objective/107,METRIC GROUP LIMITED,02560839,20-06-2018,0000078275,115.15,0,Machine Maintenance - Beetham Road,359999,Street & Traffic Not Elsewhere Classifie
South Lakeland District Council,http://opendatacommunities.org/id/district-council/south-lakeland,30/06/2018,Social Enterprise Admin,Highways & Transport Services,http://opendatacommunities.org/def/concept/finance/sercop/objective/107,METRIC GROUP LIMITED,02560839,20-06-2018,0000078275,406.97,0,Machine Maintenance - Beetham Road,359999,Street & Traffic Not Elsewhere Classifie
South Lakeland District Council,http://opendatacommunities.org/id/district-council/south-lakeland,30/06/2018,Social Enterprise Admin,Highways & Transport Services,http://opendatacommunities.org/def/concept/finance/sercop/objective/107,METRIC GROUP LIMITED,02560839,20-06-2018,0000078275,115.15,0,Machine Maintenance - Beetham Road,359999,Street & Traffic Not Elsewhere Classifie
South Lakeland District Council,http://opendatacommunities.org/id/district-council/south-lakeland,30/06/2018,Social Enterprise Admin,Highways & Transport Services,http://opendatacommunities.org/def/concept/finance/sercop/objective/107,METRIC GROUP LIMITED,02560839,20-06-2018,0000078275,115.15,0,Machine Maintenance - Beetham Road,359999,Street & Traffic Not Elsewhere Classifie
South Lakeland District Council,http://opendatacommunities.org/id/district-council/south-lakeland,30/06/2018,Social Enterprise Admin,Highways & Transport Services,http://opendatacommunities.org/def/concept/finance/sercop/objective/107,METRIC GROUP LIMITED,02560839,20-06-2018,0000078275,188.08,0,Machine Maintenance - Beetham Road,359999,Street & Traffic Not Elsewhere Classifie
South Lakeland District Council,http://opendatacommunities.org/id/district-council/south-lakeland,30/06/2018,Social Enterprise Admin,Highways & Transport Services,http://opendatacommunities.org/def/concept/finance/sercop/objective/107,METRIC GROUP LIMITED,02560839,20-06-2018,0000078275,188.08,0,Machine Maintenance - Beetham Road,359999,Street & Traffic Not Elsewhere Classifie
South Lakeland District Council,http://opendatacommunities.org/id/district-council/south-lakeland,30/06/2018,Social Enterprise Admin,Highways & Transport Services,http://opendatacommunities.org/def/concept/finance/sercop/objective/107,METRIC GROUP LIMITED,02560839,20-06-2018,0000078275,188.08,0,Machine Maintenance - Beetham Road,359999,Street & Traffic Not Elsewhere Classifie
South Lakeland District Council,http://opendatacommunities.org/id/district-council/south-lakeland,30/06/2018,Social Enterprise Admin,Highways & Transport Services,http://opendatacommunities.org/def/concept/finance/sercop/objective/107,METRIC GROUP LIMITED,02560839,20-06-2018,0000078275,406.87,0,Machine Maintenance - Beetham Road,359999,Street & Traffic Not Elsewhere Classifie
South Lakeland District Council,http://opendatacommunities.org/id/district-council/south-lakeland,30/06/2018,Social Enterprise Admin,Highways & Transport Services,http://opendatacommunities.org/def/concept/finance/sercop/objective/107,METRIC GROUP LIMITED,02560839,20-06-2018,0000078275,115.15,0,Machine Maintenance - Beetham Road,359999,Street & Traffic Not Elsewhere Classifie
South Lakeland District Council,http://opendatacommunities.org/id/district-council/south-lakeland,30/06/2018,Social Enterprise Admin,Highways & Transport Services,http://opendatacommunities.org/def/concept/finance/sercop/objective/107,METRIC GROUP LIMITED,02560839,20-06-2018,0000078275,115.15,0,Machine Maintenance - Beetham Road,359999,Street & Traffic Not Elsewhere Classifie
South Lakeland District Council,http://opendatacommunities.org/id/district-council/south-lakeland,30/06/2018,Kendal Town Hall,Cultural Environmental Regulatory & Planning Services,http://opendatacommunities.org/def/concept/finance/sercop/objective/104,W MCCLURE LTD,00685360,11-06-2018,0000078276,83.65,0,20 boxes of UHT semi-skimmed milk,111200,Catering Food & Beverages
South Lakeland District Council,http://opendatacommunities.org/id/district-council/south-lakeland,30/06/2018,Electoral Services,Central Services,http://opendatacommunities.org/def/concept/finance/sercop/objective/102,NORTHGATE VEHICLE HIRE LTD,01434157,13-06-2018,0000078281,23.27,0,Van hire for polling day - Parish Poll,381600,Vehicle Mgt Leasing
South Lakeland District Council,http://opendatacommunities.org/id/district-council/south-lakeland,30/06/2018,Customer Services,Central Services,http://opendatacommunities.org/def/concept/finance/sercop/objective/102,SHRED-IT,04047194,11-06-2018,0000078282,255.47,0,REMOVAL OF CONFIDENTIAL WASTE,279999,ICT Not Elsewhere Classified
South Lakeland District Council,http://opendatacommunities.org/id/district-council/south-lakeland,30/06/2018,Business Support Community Services,Housing Services,http://opendatacommunities.org/def/concept/finance/sercop/objective/108,GATES TRAVEL SERVICE,,11-06-2018,0000078283,16.6,0,Travel Warrant - Kendal to Lancaster,261600,HR Travel & Subsistence
South Lakeland District Council,http://opendatacommunities.org/id/district-council/south-lakeland,30/06/2018,Business Support Community Services,Cultural Environmental Regulatory & Planning Services,http://opendatacommunities.org/def/concept/finance/sercop/objective/104,ALLSTAR BUSINESS SOLUTIONS LTD (NCR),2631112,01-06-2018,0000078284,80.88,0,Fuel - Private Water Van - 27 April 2018,381600,Vehicle Mgt Leasing
South Lakeland District Council,http://opendatacommunities.org/id/district-council/south-lakeland,30/06/2018,Printing Section,Central Services,http://opendatacommunities.org/def/concept/finance/sercop/objective/102,GANDLAKE TECHNOLOGY LTD,,27-06-2018,0000078285,2407.53,0,Gandlake Rental for 2018/19,271440,ICT Software
South Lakeland District Council,http://opendatacommunities.org/id/district-council/south-lakeland,30/06/2018,Kendal Town Hall,Cultural Environmental Regulatory & Planning Services,http://opendatacommunities.org/def/concept/finance/sercop/objective/104,CUMBRIA - C P CATERING EQUIPMENT LTD,,11-06-2018,0000078287,147.69,0,2 rolls of racing green banqueting roll,111100,Catering Equipment & Utensils
South Lakeland District Council,http://opendatacommunities.org/id/district-council/south-lakeland,30/06/2018,Electoral Services,Central Services,http://opendatacommunities.org/def/concept/finance/sercop/objective/102,ROYAL MAIL GROUP PLC,,11-06-2018,0000078288,71.53,0,Response Plus Postage Returns,301200,Mail Services� Postage
South Lakeland District Council,http://opendatacommunities.org/id/district-council/south-lakeland,30/06/2018,Revenues and Benefits,Central Services,http://opendatacommunities.org/def/concept/finance/sercop/objective/102,VENN GROUP RECRUITMENT SOLUTIONS,,11-06-2018,0000078289,1056.18,0,Agency Staff - T H,261400,HR Temporary & Agency Staff
South Lakeland District Council,http://opendatacommunities.org/id/district-council/south-lakeland,30/06/2018,Revenues and Benefits,Central Services,http://opendatacommunities.org/def/concept/finance/sercop/objective/102,VENN GROUP RECRUITMENT SOLUTIONS,,11-06-2018,0000078290,627.34,0,Agency Staff - T H,261400,HR Temporary & Agency Staff
South Lakeland District Council,http://opendatacommunities.org/id/district-council/south-lakeland,30/06/2018,Business Support Community Services,Cultural Environmental Regulatory & Planning Services,http://opendatacommunities.org/def/concept/finance/sercop/objective/104,INTELLIGENT DATA SYSTEMS (UK) LTD,05148878,11-06-2018,0000078291,46,0,IDS Checks for Taxi Drivers,271510,ICT Application Service Provision
South Lakeland District Council,http://opendatacommunities.org/id/district-council/south-lakeland,30/06/2018,Development Implementation,Cultural Environmental Regulatory & Planning Services,http://opendatacommunities.org/def/concept/finance/sercop/objective/104,CUMBRIAN NEWSPAPERS LIMITED,00002729,11-06-2018,0000078292,300,0,12 Months Advertising in InCumbria,191000,Facilities Advertising
South Lakeland District Council,http://opendatacommunities.org/id/district-council/south-lakeland,30/06/2018,Development Implementation,Central Services,http://opendatacommunities.org/def/concept/finance/sercop/objective/102,ENVIROFIRST LTD,05999123,11-06-2018,0000078293,170.4,0,Lowther Street Wheelie Bin Mixed,182012,Environment Waste Management Recycling
South Lakeland District Council,http://opendatacommunities.org/id/district-council/south-lakeland,30/06/2018,Business Support Community Services,Cultural Environmental Regulatory & Planning Services,http://opendatacommunities.org/def/concept/finance/sercop/objective/104,GATES TRAVEL SERVICE,,11-06-2018,0000078294,51.1,0,Return travel to Manchester 04/07/18,261600,HR Travel & Subsistence
South Lakeland District Council,http://opendatacommunities.org/id/district-council/south-lakeland,30/06/2018,Development Implementation,SLDC as Agent,,Sparrow Digital,,11-06-2018,0000078295,780,0,Visit-Kendal.co.uk - creation of events,271515,ICT Website Development
South Lakeland District Council,http://opendatacommunities.org/id/district-council/south-lakeland,30/06/2018,Development Implementation,Cultural Environmental Regulatory & Planning Services,http://opendatacommunities.org/def/concept/finance/sercop/objective/104,SUN SIGNS,04413045,11-06-2018,0000078296,90.1,0,2 x Courtesy Toilet Scheme Dibond Signs,102400,Building Signage
South Lakeland District Council,http://opendatacommunities.org/id/district-council/south-lakeland,30/06/2018,Lake Wardens,Cultural Environmental Regulatory & Planning Services,http://opendatacommunities.org/def/concept/finance/sercop/objective/104,ENVIROFIRST LTD,05999123,11-06-2018,0000078299,64.43,0,Rental & Emptying of Re-Cycling Bins at,182012,Environment Waste Management Recycling
South Lakeland District Council,http://opendatacommunities.org/id/district-council/south-lakeland,30/06/2018,Environment and Housing,Housing Services,http://opendatacommunities.org/def/concept/finance/sercop/objective/108,Vigilant Security Services UK Ltd,05914271,18-06-2018,0000078300,3024,0,Secruity guard at TVF Hostel,192213,Facilities Security Manned Guarding
South Lakeland District Council,http://opendatacommunities.org/id/district-council/south-lakeland,30/06/2018,Human Resources,Central Services,http://opendatacommunities.org/def/concept/finance/sercop/objective/102,Choose Occupational Health,07365943,11-06-2018,0000078301,15.75,0,Pre employment medical,191800,Facilities Public Relations & Image
South Lakeland District Council,http://opendatacommunities.org/id/district-council/south-lakeland,30/06/2018,Public Health and Licensing,Central Services,http://opendatacommunities.org/def/concept/finance/sercop/objective/102,PLASTIC CARD SOLUTIONS LTD,04849000,20-06-2018,0000078303,87.19,0,Zebra 80077-742EM YMCKO 750 image,192200,Facilities Security
South Lakeland District Council,http://opendatacommunities.org/id/district-council/south-lakeland,30/06/2018,Business Support Community Services,Housing Services,http://opendatacommunities.org/def/concept/finance/sercop/objective/108,G B BURROW & SON,,11-06-2018,0000078304,132,0,Storage Costs,192300,Facilities Storage
South Lakeland District Council,http://opendatacommunities.org/id/district-council/south-lakeland,30/06/2018,Business Support Community Services,Housing Services,http://opendatacommunities.org/def/concept/finance/sercop/objective/108,G B BURROW & SON,,11-06-2018,0000078305,130,0,Storage Costs,192300,Facilities Storage
South Lakeland District Council,http://opendatacommunities.org/id/district-council/south-lakeland,30/06/2018,Environment and Housing,Housing Services,http://opendatacommunities.org/def/concept/finance/sercop/objective/108,James Andrews Recruitment Solutions,06834852,20-06-2018,0000078306,440.7,0,Payment for SP,261400,HR Temporary & Agency Staff
South Lakeland District Council,http://opendatacommunities.org/id/district-council/south-lakeland,30/06/2018,Environment and Housing,Housing Services,http://opendatacommunities.org/def/concept/finance/sercop/objective/108,James Andrews Recruitment Solutions,06834852,20-06-2018,0000078306,440.7,0,Payment for SP,261400,HR Temporary & Agency Staff
South Lakeland District Council,http://opendatacommunities.org/id/district-council/south-lakeland,30/06/2018,Environment and Housing,Housing Services,http://opendatacommunities.org/def/concept/finance/sercop/objective/108,James Andrews Recruitment Solutions,06834852,25-06-2018,0000078307,343.37,0,Payment for J H,261400,HR Temporary & Agency Staff
South Lakeland District Council,http://opendatacommunities.org/id/district-council/south-lakeland,30/06/2018,Environment and Housing,Housing Services,http://opendatacommunities.org/def/concept/finance/sercop/objective/108,James Andrews Recruitment Solutions,06834852,18-06-2018,0000078309,372.9,0,Payment for SP,261400,HR Temporary & Agency Staff
South Lakeland District Council,http://opendatacommunities.org/id/district-council/south-lakeland,30/06/2018,Environment and Housing,Housing Services,http://opendatacommunities.org/def/concept/finance/sercop/objective/108,James Andrews Recruitment Solutions,06834852,18-06-2018,0000078309,372.9,0,Payment for SP,261400,HR Temporary & Agency Staff
South Lakeland District Council,http://opendatacommunities.org/id/district-council/south-lakeland,30/06/2018,Social Enterprise Admin,Cultural Environmental Regulatory & Planning Services,http://opendatacommunities.org/def/concept/finance/sercop/objective/104,NEWSQUEST MEDIA GROUP LTD,03102566,11-06-2018,0000078311,169.28,0,PUBLIC NOTICES FOR PLANNING 1 APRIL - 31,191000,Facilities Advertising
South Lakeland District Council,http://opendatacommunities.org/id/district-council/south-lakeland,30/06/2018,Social Enterprise Admin,Highways & Transport Services,http://opendatacommunities.org/def/concept/finance/sercop/objective/107,CREDIT CALL LTD (NCR),,01-06-2018,0000078312,1637.35,0,Credit Call commission 2018/19,209999,Financial Services Not Elsewhere Classif
South Lakeland District Council,http://opendatacommunities.org/id/district-council/south-lakeland,30/06/2018,Social Enterprise Admin,Highways & Transport Services,http://opendatacommunities.org/def/concept/finance/sercop/objective/107,BEMROSE BOOTH PARAGON LTD,04891375,11-06-2018,0000078315,1056.5,0,"175,000 All Areas Aura Tickets",191600,Facilities Printing
South Lakeland District Council,http://opendatacommunities.org/id/district-council/south-lakeland,30/06/2018,Electoral Services,Central Services,http://opendatacommunities.org/def/concept/finance/sercop/objective/102,NORTHGATE VEHICLE HIRE LTD,01434157,13-06-2018,0000078316,48,0,Van Hire for May elections,381600,Vehicle Mgt Leasing
South Lakeland District Council,http://opendatacommunities.org/id/district-council/south-lakeland,30/06/2018,Electoral Services,Central Services,http://opendatacommunities.org/def/concept/finance/sercop/objective/102,NORTHGATE VEHICLE HIRE LTD,01434157,13-06-2018,0000078317,48,0,Van Hire for May election,381600,Vehicle Mgt Leasing
South Lakeland District Council,http://opendatacommunities.org/id/district-council/south-lakeland,30/06/2018,Business Support Community Services,Cultural Environmental Regulatory & Planning Services,http://opendatacommunities.org/def/concept/finance/sercop/objective/104,ARNSIDE PARISH COUNCIL,,11-06-2018,0000078320,7000,0,2017-18 funding contribution to the,908000,Public Bodies Council support services
South Lakeland District Council,http://opendatacommunities.org/id/district-council/south-lakeland,30/06/2018,Business Support Community Services,Housing Services,http://opendatacommunities.org/def/concept/finance/sercop/objective/108,Ashberry Recruitment,07202591,18-06-2018,0000078322,959.17,0,Agency Support Staff at Town View Fields,261300,HR Recruitment & Assessment
South Lakeland District Council,http://opendatacommunities.org/id/district-council/south-lakeland,30/06/2018,ICT Group,Central Services,http://opendatacommunities.org/def/concept/finance/sercop/objective/102,VODAFONE LIMITED,01471587,13-06-2018,0000078324,4470.99,0,Mobile Phone charges. 1/4/18 to 30/6/18,271800,ICT Telecommunications Mobile
South Lakeland District Council,http://opendatacommunities.org/id/district-council/south-lakeland,30/06/2018,Business Support Community Services,Internal Trading Accounts,,TAYLOR ENGINEERING & FABRICATIONS LTD,04989359,13-06-2018,0000078328,201.27,0,Parts,391200,Construction Engineering
South Lakeland District Council,http://opendatacommunities.org/id/district-council/south-lakeland,30/06/2018,Business Support Community Services,Internal Trading Accounts,,TAYLOR ENGINEERING & FABRICATIONS LTD,04989359,13-06-2018,0000078329,182.77,0,Parts,391200,Construction Engineering
South Lakeland District Council,http://opendatacommunities.org/id/district-council/south-lakeland,30/06/2018,Human Resources,Central Services,http://opendatacommunities.org/def/concept/finance/sercop/objective/102,Skillset Limited,,13-06-2018,0000078332,750,0,Year 1 costs (software and support) -,261520,Human Resources Training
South Lakeland District Council,http://opendatacommunities.org/id/district-council/south-lakeland,30/06/2018,Environment and Housing,Central Services,http://opendatacommunities.org/def/concept/finance/sercop/objective/102,FERRET INFORMATION SYSTEMS LTD,02126033,20-06-2018,0000078333,190,0,Ferret Renovator PC Renewal for 12,271600,ICT Software Customised & Bespoke
South Lakeland District Council,http://opendatacommunities.org/id/district-council/south-lakeland,30/06/2018,Social Enterprise Admin,SLDC as Agent,,PAY BY PHONE (PAYPOINT),,20-06-2018,0000078334,629.78,0,Pay-by-phone charges from 1 April 2018,351400,Street & Traffic Traffic Control
South Lakeland District Council,http://opendatacommunities.org/id/district-council/south-lakeland,30/06/2018,Human Resources,Central Services,http://opendatacommunities.org/def/concept/finance/sercop/objective/102,MIDLAND SOFTWARE LTD,01852206,13-06-2018,0000078335,112.5,0,iTrent GDPR Licence,271600,ICT Software Customised & Bespoke
South Lakeland District Council,http://opendatacommunities.org/id/district-council/south-lakeland,30/06/2018,Development Strategy,Cultural Environmental Regulatory & Planning Services,http://opendatacommunities.org/def/concept/finance/sercop/objective/104,R Bryan Planning,,25-06-2018,0000078336,5737.5,0,examination of Grange over Sands,152100,Consultancy Strategic Planning
South Lakeland District Council,http://opendatacommunities.org/id/district-council/south-lakeland,30/06/2018,Development Implementation,Cultural Environmental Regulatory & Planning Services,http://opendatacommunities.org/def/concept/finance/sercop/objective/104,PS BUSINESS MATTERS,08147185,18-06-2018,0000078337,2000,0,Kendal Futures Programme - Project,151900,Consultancy Management
South Lakeland District Council,http://opendatacommunities.org/id/district-council/south-lakeland,30/06/2018,Development Implementation,Cultural Environmental Regulatory & Planning Services,http://opendatacommunities.org/def/concept/finance/sercop/objective/104,PS BUSINESS MATTERS,08147185,18-06-2018,0000078338,700,0,Marketing Support Project - Mintworks,151900,Consultancy Management
South Lakeland District Council,http://opendatacommunities.org/id/district-council/south-lakeland,30/06/2018,Business Support Community Services,Cultural Environmental Regulatory & Planning Services,http://opendatacommunities.org/def/concept/finance/sercop/objective/104,CANNON HYGIENE LTD,01298292,13-06-2018,0000078339,2376.49,0,Clinical waste collections - 2018/19,131011,Cleaning & Janitorial Cleaning Materials
South Lakeland District Council,http://opendatacommunities.org/id/district-council/south-lakeland,30/06/2018,Business Support Community Services,Cultural Environmental Regulatory & Planning Services,http://opendatacommunities.org/def/concept/finance/sercop/objective/104,ALLSTAR BUSINESS SOLUTIONS LTD (NCR),2631112,01-06-2018,0000078340,4976.76,0,Fuel to 31/05/18,381600,Vehicle Mgt Leasing
South Lakeland District Council,http://opendatacommunities.org/id/district-council/south-lakeland,30/06/2018,Business Support Community Services,Cultural Environmental Regulatory & Planning Services,http://opendatacommunities.org/def/concept/finance/sercop/objective/104,ALLSTAR BUSINESS SOLUTIONS LTD (NCR),2631112,01-06-2018,0000078340,16427.04,0,Fuel to 31/05/18,381600,Vehicle Mgt Leasing
South Lakeland District Council,http://opendatacommunities.org/id/district-council/south-lakeland,30/06/2018,Business Support Community Services,Internal Trading Accounts,,HYDRAIR TRUCK & TRAILER PARTS LTD,,13-06-2018,0000078341,-136.08,0,Parts,381500,Vehicle Mgt Parts
South Lakeland District Council,http://opendatacommunities.org/id/district-council/south-lakeland,30/06/2018,Business Support Community Services,Internal Trading Accounts,,EK MOTOR FACTORS LTD,00838524,13-06-2018,0000078342,244.59,0,Parts,381400,Vehicle Mgt Maintenance
South Lakeland District Council,http://opendatacommunities.org/id/district-council/south-lakeland,30/06/2018,Business Support Community Services,Cultural Environmental Regulatory & Planning Services,http://opendatacommunities.org/def/concept/finance/sercop/objective/104,ARCO LIMITED,00133804,13-06-2018,0000078344,18.97,0,Cleaning materials,141100,Clothing Protective
South Lakeland District Council,http://opendatacommunities.org/id/district-council/south-lakeland,30/06/2018,Business Support Community Services,Cultural Environmental Regulatory & Planning Services,http://opendatacommunities.org/def/concept/finance/sercop/objective/104,CHARLESWORTH TREE CARE & FENCING LTD,05628824,13-06-2018,0000078345,56.25,0,Posts,152200,Consultancy Technical & Feasibility
South Lakeland District Council,http://opendatacommunities.org/id/district-council/south-lakeland,30/06/2018,Business Support Community Services,Internal Trading Accounts,,Verizon Connect UK Ltd,05265904,13-06-2018,0000078346,50,0,Annual fee for 70 vehicles from 01/06/18,361000,Public Transport Fleet Management
South Lakeland District Council,http://opendatacommunities.org/id/district-council/south-lakeland,30/06/2018,Business Support Community Services,Internal Trading Accounts,,Verizon Connect UK Ltd,05265904,13-06-2018,0000078347,13440,0,Annual fee for 70 vehicles from 01/06/18,361000,Public Transport Fleet Management
South Lakeland District Council,http://opendatacommunities.org/id/district-council/south-lakeland,30/06/2018,Business Support Community Services,Internal Trading Accounts,,S J Bargh,00532272,13-06-2018,0000078348,230.98,0,MOTs 2018/19 & vehicle cleaning,381400,Vehicle Mgt Maintenance
South Lakeland District Council,http://opendatacommunities.org/id/district-council/south-lakeland,30/06/2018,Business Support Community Services,Internal Trading Accounts,,S J Bargh,00532272,13-06-2018,0000078349,252.98,0,MOTs 2018/19 & vehicle cleaning,381400,Vehicle Mgt Maintenance
South Lakeland District Council,http://opendatacommunities.org/id/district-council/south-lakeland,30/06/2018,Business Support Community Services,Internal Trading Accounts,,S J Bargh,00532272,13-06-2018,0000078350,230.98,0,MOTs 2018/19 & vehicle cleaning,381400,Vehicle Mgt Maintenance
South Lakeland District Council,http://opendatacommunities.org/id/district-council/south-lakeland,30/06/2018,Business Support Community Services,Internal Trading Accounts,,LANCASHIRE DAF,,13-06-2018,0000078351,100.65,0,Brake pads,381400,Vehicle Mgt Maintenance
South Lakeland District Council,http://opendatacommunities.org/id/district-council/south-lakeland,30/06/2018,Business Support Community Services,Internal Trading Accounts,,HYDRAIR TRUCK & TRAILER PARTS LTD,,13-06-2018,0000078352,917.68,0,Parts,381500,Vehicle Mgt Parts
South Lakeland District Council,http://opendatacommunities.org/id/district-council/south-lakeland,30/06/2018,Business Support Community Services,Cultural Environmental Regulatory & Planning Services,http://opendatacommunities.org/def/concept/finance/sercop/objective/104,GREENCHEM SOLUTIONS LTD,05175801,13-06-2018,0000078353,525.25,0,AdBlue,189999,Environmental Services Not Elsewhere Cla
South Lakeland District Council,http://opendatacommunities.org/id/district-council/south-lakeland,30/06/2018,Business Support Community Services,Internal Trading Accounts,,BOC GASES,337663,13-06-2018,0000078354,179.33,0,Gas supplies 2018/19,371100,Utilities Gas
South Lakeland District Council,http://opendatacommunities.org/id/district-council/south-lakeland,30/06/2018,Revenues and Benefits,Central Services,http://opendatacommunities.org/def/concept/finance/sercop/objective/102,THE QUAKER TAPESTRY KENDAL LTD,,13-06-2018,0000078355,244,0,"Room hire for 20, Friend Meeting Room",291400,Arts & Leisure Services Sport & Fitness
South Lakeland District Council,http://opendatacommunities.org/id/district-council/south-lakeland,30/06/2018,Business Support Community Services,Cultural Environmental Regulatory & Planning Services,http://opendatacommunities.org/def/concept/finance/sercop/objective/104,LAKELAND SUPPLIES,,18-06-2018,0000078356,73.1,0,Fixtures & fittings,101610,Building Hand Tools
South Lakeland District Council,http://opendatacommunities.org/id/district-council/south-lakeland,30/06/2018,Business Support Community Services,Central Services,http://opendatacommunities.org/def/concept/finance/sercop/objective/102,CUMBRIA COUNTY COUNCIL,,13-06-2018,0000078357,5010.8,0,LAND CHARGE SEARCH ENQUIRIES HIGHWAYS,908000,Public Bodies Council support services
South Lakeland District Council,http://opendatacommunities.org/id/district-council/south-lakeland,30/06/2018,Business Support Community Services,Cultural Environmental Regulatory & Planning Services,http://opendatacommunities.org/def/concept/finance/sercop/objective/104,ARCO LIMITED,00133804,13-06-2018,0000078358,43.51,0,Cleaning materials,141100,Clothing Protective
South Lakeland District Council,http://opendatacommunities.org/id/district-council/south-lakeland,30/06/2018,Business Support Community Services,Internal Trading Accounts,,ARCO LIMITED,00133804,13-06-2018,0000078359,167.2,0,Safety boots,141100,Clothing Protective
South Lakeland District Council,http://opendatacommunities.org/id/district-council/south-lakeland,30/06/2018,Business Support Community Services,Internal Trading Accounts,,Verizon Connect UK Ltd,05265904,13-06-2018,0000078360,32,0,Annual fee for 70 vehicles from 01/06/18,361000,Public Transport Fleet Management
South Lakeland District Council,http://opendatacommunities.org/id/district-council/south-lakeland,30/06/2018,Business Support Community Services,Cultural Environmental Regulatory & Planning Services,http://opendatacommunities.org/def/concept/finance/sercop/objective/104,PIER 1 METALWORKS LTD,04291520,13-06-2018,0000078361,360,0,Glass shields,391200,Construction Engineering
South Lakeland District Council,http://opendatacommunities.org/id/district-council/south-lakeland,30/06/2018,Business Support Community Services,Cultural Environmental Regulatory & Planning Services,http://opendatacommunities.org/def/concept/finance/sercop/objective/104,Enevo UK Ltd,9347391,13-06-2018,0000078362,416,0,Monthly subscriptions 2018/19,261517,ICT-Consultancy
South Lakeland District Council,http://opendatacommunities.org/id/district-council/south-lakeland,30/06/2018,Business Support Community Services,Cultural Environmental Regulatory & Planning Services,http://opendatacommunities.org/def/concept/finance/sercop/objective/104,Masterstaff Limited,02777593,13-06-2018,0000078363,5547.3,0,Agency staff,261300,HR Recruitment & Assessment
South Lakeland District Council,http://opendatacommunities.org/id/district-council/south-lakeland,30/06/2018,Business Support Community Services,Housing Services,http://opendatacommunities.org/def/concept/finance/sercop/objective/108,Landlord,,13-06-2018,0000078364,600,0,Monthly rent ,250000,Housing
South Lakeland District Council,http://opendatacommunities.org/id/district-council/south-lakeland,30/06/2018,Business Support Community Services,Cultural Environmental Regulatory & Planning Services,http://opendatacommunities.org/def/concept/finance/sercop/objective/104,PENNINGTONS (KENDAL) LIMITED,00434649,13-06-2018,0000078365,2500,0,Annual Charge for use of Link Road at,182013,Environment Waste Mgt Waste Collection
South Lakeland District Council,http://opendatacommunities.org/id/district-council/south-lakeland,30/06/2018,Business Support Community Services,Cultural Environmental Regulatory & Planning Services,http://opendatacommunities.org/def/concept/finance/sercop/objective/104,ARCO LIMITED,00133804,13-06-2018,0000078366,40.32,0,Cleaning materials,141100,Clothing Protective
South Lakeland District Council,http://opendatacommunities.org/id/district-council/south-lakeland,30/06/2018,Business Support Community Services,Internal Trading Accounts,,J R RICHARDSON LTD,02225792,13-06-2018,0000078367,150.16,0,Vehicle washing consumables,381500,Vehicle Mgt Parts
South Lakeland District Council,http://opendatacommunities.org/id/district-council/south-lakeland,30/06/2018,Business Support Community Services,Transport Planning Policy,http://opendatacommunities.org/def/concept/finance/sercop/objective/107,ARCO LIMITED,00133804,13-06-2018,0000078368,17.27,0,Cleaning materials,141100,Clothing Protective
South Lakeland District Council,http://opendatacommunities.org/id/district-council/south-lakeland,30/06/2018,Business Support Community Services,Cultural Environmental Regulatory & Planning Services,http://opendatacommunities.org/def/concept/finance/sercop/objective/104,ARCO LIMITED,00133804,13-06-2018,0000078369,53.68,0,Cleaning materials,141100,Clothing Protective
South Lakeland District Council,http://opendatacommunities.org/id/district-council/south-lakeland,30/06/2018,Business Support Community Services,Internal Trading Accounts,,Harry Park Tyres Ltd,08131208,13-06-2018,0000078370,50,0,Tyres,381500,Vehicle Mgt Parts
South Lakeland District Council,http://opendatacommunities.org/id/district-council/south-lakeland,30/06/2018,Business Support Community Services,Internal Trading Accounts,,VOLVO GROUP UK LTD,02190944,13-06-2018,0000078371,440,0,Parts,381000,Vehicle Mgt Commercial
South Lakeland District Council,http://opendatacommunities.org/id/district-council/south-lakeland,30/06/2018,Business Support Community Services,Internal Trading Accounts,,HYDRAIR TRUCK & TRAILER PARTS LTD,,13-06-2018,0000078372,340,0,Parts,381500,Vehicle Mgt Parts
South Lakeland District Council,http://opendatacommunities.org/id/district-council/south-lakeland,30/06/2018,Business Support Community Services,Internal Trading Accounts,,Harry Park Tyres Ltd,08131208,13-06-2018,0000078373,975,0,Tyres,381500,Vehicle Mgt Parts
South Lakeland District Council,http://opendatacommunities.org/id/district-council/south-lakeland,30/06/2018,Business Support Community Services,Internal Trading Accounts,,DENNIS EAGLE LTD,03794455,13-06-2018,0000078374,39.62,0,Parts,381300,Vehicle Mgt Industrial
South Lakeland District Council,http://opendatacommunities.org/id/district-council/south-lakeland,30/06/2018,Business Support Community Services,Internal Trading Accounts,,Romaquip UK,,18-06-2018,0000078375,134.53,0,Hooks,381000,Vehicle Mgt Commercial
South Lakeland District Council,http://opendatacommunities.org/id/district-council/south-lakeland,30/06/2018,Business Support Community Services,Internal Trading Accounts,,HYDRAIR TRUCK & TRAILER PARTS LTD,,13-06-2018,0000078376,221.16,0,Parts,381500,Vehicle Mgt Parts
South Lakeland District Council,http://opendatacommunities.org/id/district-council/south-lakeland,30/06/2018,Business Support Community Services,Internal Trading Accounts,,TPS Preston,,13-06-2018,0000078377,140.3,0,Parts,381400,Vehicle Mgt Maintenance
South Lakeland District Council,http://opendatacommunities.org/id/district-council/south-lakeland,30/06/2018,Business Support Community Services,Internal Trading Accounts,,SOLWAY DAF,1393710,13-06-2018,0000078378,27.18,0,Parts,381000,Vehicle Mgt Commercial
South Lakeland District Council,http://opendatacommunities.org/id/district-council/south-lakeland,30/06/2018,Business Support Community Services,Internal Trading Accounts,,FAUN ZOELLER (UK) LTD,00751804,18-06-2018,0000078379,676.75,0,Valve,381400,Vehicle Mgt Maintenance
South Lakeland District Council,http://opendatacommunities.org/id/district-council/south-lakeland,30/06/2018,Business Support Community Services,SLDC as Agent,,CUMBRIA COUNTY COUNCIL,,13-06-2018,0000078380,54,0,DBS Checks for Taxi Drivers,908000,Public Bodies Council support services
South Lakeland District Council,http://opendatacommunities.org/id/district-council/south-lakeland,30/06/2018,Business Support Community Services,SLDC as Agent,,CUMBRIA COUNTY COUNCIL,,18-06-2018,0000078381,54,0,DBS Checks for Taxi Drivers,908000,Public Bodies Council support services
South Lakeland District Council,http://opendatacommunities.org/id/district-council/south-lakeland,30/06/2018,Lake Wardens,Cultural Environmental Regulatory & Planning Services,http://opendatacommunities.org/def/concept/finance/sercop/objective/104,Medical Gas Solutions Ltd T/a,04967365,27-06-2018,0000078382,37.95,0,Monthly Rental of medical gas cylinders,221100,Health & Safety� Maintenance
South Lakeland District Council,http://opendatacommunities.org/id/district-council/south-lakeland,30/06/2018,Leisure and Wellbeing,Cultural Environmental Regulatory & Planning Services,http://opendatacommunities.org/def/concept/finance/sercop/objective/104,Sutcliffe Play Scotland Ltd,SC359176,13-06-2018,0000078383,25.91,0,"RBF 500 2 1/2"" red rubber bung and",331000,Sports Playground Equipment
South Lakeland District Council,http://opendatacommunities.org/id/district-council/south-lakeland,30/06/2018,Customer Services,Cultural Environmental Regulatory & Planning Services,http://opendatacommunities.org/def/concept/finance/sercop/objective/104,RIGHT 2 WORK,,18-06-2018,0000078384,4174,0,FOR REMOVAL OF BULKY WASTE,321010,Social Care Adult Advice & Counselling
South Lakeland District Council,http://opendatacommunities.org/id/district-council/south-lakeland,30/06/2018,Policy & Partnerships,Central Services,http://opendatacommunities.org/def/concept/finance/sercop/objective/102,NATIONWIDE FIRE TRAINING LTD,05034855,13-06-2018,0000078385,135,0,Fire Warden Training- Tuesday 5th June.,221100,Health & Safety� Maintenance
South Lakeland District Council,http://opendatacommunities.org/id/district-council/south-lakeland,30/06/2018,Policy & Partnerships,Cultural Environmental Regulatory & Planning Services,http://opendatacommunities.org/def/concept/finance/sercop/objective/104,CUMBRIA COUNTY COUNCIL,,13-06-2018,0000078386,450,0,SLDC's contribution to Cumbria Sports,908000,Public Bodies Council support services
South Lakeland District Council,http://opendatacommunities.org/id/district-council/south-lakeland,30/06/2018,Printing Section,Cultural Environmental Regulatory & Planning Services,http://opendatacommunities.org/def/concept/finance/sercop/objective/104,SOS LAMINATORS LTD T/A LANCASHIRE LAMINA,06928347,13-06-2018,0000078387,95,0,Postage,190000,Facilities & Management Services
South Lakeland District Council,http://opendatacommunities.org/id/district-council/south-lakeland,30/06/2018,Revenues and Benefits,Central Services,http://opendatacommunities.org/def/concept/finance/sercop/objective/102,TAMESIDE METROPOLITAN BOROUGH,,13-06-2018,0000078388,407.86,0,2017 - 18 NAFN credit and other,202100,Financial Services Subscriptions
South Lakeland District Council,http://opendatacommunities.org/id/district-council/south-lakeland,30/06/2018,ICT Group,Central Services,http://opendatacommunities.org/def/concept/finance/sercop/objective/102,DAISY COMMUNICATIONS LTD,04145329,20-06-2018,0000078389,364.37,0,Daisy Line Rentals,271700,ICT Telecommunications Fixed
South Lakeland District Council,http://opendatacommunities.org/id/district-council/south-lakeland,30/06/2018,ICT Group,Central Services,http://opendatacommunities.org/def/concept/finance/sercop/objective/102,DAISY COMMUNICATIONS LTD,04145329,20-06-2018,0000078389,84.97,0,Daisy Line Rentals,271700,ICT Telecommunications Fixed
South Lakeland District Council,http://opendatacommunities.org/id/district-council/south-lakeland,30/06/2018,Revenues and Benefits,SLDC as Agent,,ROYAL MAIL GROUP PLC,,13-06-2018,0000078390,1294.97,0,2018-19 Postal Charges a/c 0198123013,301200,Mail Services� Postage
South Lakeland District Council,http://opendatacommunities.org/id/district-council/south-lakeland,30/06/2018,Business Support Community Services,Housing Services,http://opendatacommunities.org/def/concept/finance/sercop/objective/108,Landlord,,13-06-2018,0000078392,520,0,Monthly rent ,202000,Financial Services Rents
South Lakeland District Council,http://opendatacommunities.org/id/district-council/south-lakeland,30/06/2018,Financial Services,Non-Service Payments,,COMPUTERSHARE VOUCHER SERVICES LTD,04968447,13-06-2018,0000078393,1065.93,0,child care vouchers,202100,Financial Services Subscriptions
South Lakeland District Council,http://opendatacommunities.org/id/district-council/south-lakeland,30/06/2018,Financial Services,Non-Service Payments,,BUSY BEES BENEFITS LTD,06758298,13-06-2018,0000078394,1161,0,child care vouchers,202100,Financial Services Subscriptions
South Lakeland District Council,http://opendatacommunities.org/id/district-council/south-lakeland,30/06/2018,Financial Services,Central Services,http://opendatacommunities.org/def/concept/finance/sercop/objective/102,BUSY BEES BENEFITS LTD,06758298,13-06-2018,0000078395,40.63,0,Busy Bees child care voucher service,202100,Financial Services Subscriptions
South Lakeland District Council,http://opendatacommunities.org/id/district-council/south-lakeland,30/06/2018,Kendal Town Hall,Cultural Environmental Regulatory & Planning Services,http://opendatacommunities.org/def/concept/finance/sercop/objective/104,CRUDEN PROPERTY SERVICES LTD,03851237,13-06-2018,0000078396,95.91,0,Removal of items from Kendal Town Hall,391111,Construction Buildings Repair & Mtce
South Lakeland District Council,http://opendatacommunities.org/id/district-council/south-lakeland,30/06/2018,Kendal Town Hall,Cultural Environmental Regulatory & Planning Services,http://opendatacommunities.org/def/concept/finance/sercop/objective/104,CRUDEN PROPERTY SERVICES LTD,03851237,13-06-2018,0000078397,250,0,Removable ramp for Kendal Town Hall,391111,Construction Buildings Repair & Mtce
South Lakeland District Council,http://opendatacommunities.org/id/district-council/south-lakeland,30/06/2018,Human Resources,Central Services,http://opendatacommunities.org/def/concept/finance/sercop/objective/102,Choose Occupational Health,07365943,13-06-2018,0000078398,208.5,0,Fiona Hudson pre employment medical,191800,Facilities Public Relations & Image
South Lakeland District Council,http://opendatacommunities.org/id/district-council/south-lakeland,30/06/2018,Human Resources,Cultural Environmental Regulatory & Planning Services,http://opendatacommunities.org/def/concept/finance/sercop/objective/104,Choose Occupational Health,07365943,13-06-2018,0000078398,414,0,Fiona Hudson pre employment medical,191800,Facilities Public Relations & Image
South Lakeland District Council,http://opendatacommunities.org/id/district-council/south-lakeland,30/06/2018,Leisure and Wellbeing,Cultural Environmental Regulatory & Planning Services,http://opendatacommunities.org/def/concept/finance/sercop/objective/104,J S Cleaning Services,,18-06-2018,0000078399,75,0,For weekly cleaning of chapel,131010,Cleaning & Janitorial Cleaning Materials
South Lakeland District Council,http://opendatacommunities.org/id/district-council/south-lakeland,30/06/2018,Leisure and Wellbeing,Cultural Environmental Regulatory & Planning Services,http://opendatacommunities.org/def/concept/finance/sercop/objective/104,NETWORK RAIL COMMERCIAL PROPERTY,,13-06-2018,0000078400,50.02,0,Kents Bank - privilege of footpath,191700,Facilities Property Management
South Lakeland District Council,http://opendatacommunities.org/id/district-council/south-lakeland,30/06/2018,Kendal Town Hall,Cultural Environmental Regulatory & Planning Services,http://opendatacommunities.org/def/concept/finance/sercop/objective/104,EVAC CHAIR INTERNATIONAL LTD,03593826,13-06-2018,0000078402,330,0,Annual service of Evac Chairs at KTH,321311,Social Care Supplies Equipment
South Lakeland District Council,http://opendatacommunities.org/id/district-council/south-lakeland,30/06/2018,Business Support Community Services,Internal Trading Accounts,,EK MOTOR FACTORS LTD,00838524,13-06-2018,0000078403,249.66,0,Parts,381400,Vehicle Mgt Maintenance
South Lakeland District Council,http://opendatacommunities.org/id/district-council/south-lakeland,30/06/2018,Business Support Community Services,Internal Trading Accounts,,EK MOTOR FACTORS LTD,00838524,13-06-2018,0000078404,51.3,0,Parts,381400,Vehicle Mgt Maintenance
South Lakeland District Council,http://opendatacommunities.org/id/district-council/south-lakeland,30/06/2018,Environment and Housing,Housing Services,http://opendatacommunities.org/def/concept/finance/sercop/objective/108,James Andrews Recruitment Solutions,06834852,13-06-2018,0000078410,343.37,0,Payment for J H,261400,HR Temporary & Agency Staff
South Lakeland District Council,http://opendatacommunities.org/id/district-council/south-lakeland,30/06/2018,Business Support Community Services,Internal Trading Accounts,,EK MOTOR FACTORS LTD,00838524,13-06-2018,0000078411,244.59,0,Parts,381400,Vehicle Mgt Maintenance
South Lakeland District Council,http://opendatacommunities.org/id/district-council/south-lakeland,30/06/2018,Business Support Community Services,Internal Trading Accounts,,EK MOTOR FACTORS LTD,00838524,13-06-2018,0000078412,249.66,0,Parts,381400,Vehicle Mgt Maintenance
South Lakeland District Council,http://opendatacommunities.org/id/district-council/south-lakeland,30/06/2018,ICT Group,Central Services,http://opendatacommunities.org/def/concept/finance/sercop/objective/102,IT PROFESSIONAL SERVICES (ITPS),,13-06-2018,0000078413,71.65,0,SIP calls not covered by SIP rental,279999,ICT Not Elsewhere Classified
South Lakeland District Council,http://opendatacommunities.org/id/district-council/south-lakeland,30/06/2018,Printing Section,Central Services,http://opendatacommunities.org/def/concept/finance/sercop/objective/102,ROSEFOX PAPER LIMITED,01655083,18-06-2018,0000078414,21.9,0,SRA3 Pro Design 350gsm,341000,Stationery Paper
South Lakeland District Council,http://opendatacommunities.org/id/district-council/south-lakeland,30/06/2018,Printing Section,Central Services,http://opendatacommunities.org/def/concept/finance/sercop/objective/102,ROSEFOX PAPER LIMITED,01655083,18-06-2018,0000078415,9.23,0,Box of 500 white window envelopes,341000,Stationery Paper
South Lakeland District Council,http://opendatacommunities.org/id/district-council/south-lakeland,30/06/2018,Business Support Community Services,Internal Trading Accounts,,INNOVATIVE SAFETY SYSTEMS LTD,06875015,18-06-2018,0000078416,1385,0,Reaclear systems,192200,Facilities Security
South Lakeland District Council,http://opendatacommunities.org/id/district-council/south-lakeland,30/06/2018,ICT Group,Central Services,http://opendatacommunities.org/def/concept/finance/sercop/objective/102,ITPS Professional Services Ltd (DD),,01-06-2018,0000078417,13.2,0,Installation of PSTN Line,271700,ICT Telecommunications Fixed
South Lakeland District Council,http://opendatacommunities.org/id/district-council/south-lakeland,30/06/2018,ICT Group,Central Services,http://opendatacommunities.org/def/concept/finance/sercop/objective/102,ITPS Professional Services Ltd (DD),,01-06-2018,0000078417,2.55,0,Installation of PSTN Line,271700,ICT Telecommunications Fixed
South Lakeland District Council,http://opendatacommunities.org/id/district-council/south-lakeland,30/06/2018,Social Enterprise Admin,Culture and Related Serv,http://opendatacommunities.org/def/concept/finance/sercop/objective/104,Eamonn Byrne Landscape Architecture,,13-06-2018,0000078418,1250,0,Tender documentation and detailed,391300,Construction Open Spaces
South Lakeland District Council,http://opendatacommunities.org/id/district-council/south-lakeland,30/06/2018,Financial Services,Central Services,http://opendatacommunities.org/def/concept/finance/sercop/objective/102,Bowness & Windermere Community,,18-06-2018,0000078419,175,0,Use of Phoenix Centre on 03/05/2018 for,311600,Healthcare Services
South Lakeland District Council,http://opendatacommunities.org/id/district-council/south-lakeland,30/06/2018,Revenues and Benefits,Non-Service Payments,,Kendal BID Ltd,08986243,13-06-2018,0000078420,83819.39,0,Collection figures for April & May 2018,201700,Financial Services Grants
South Lakeland District Council,http://opendatacommunities.org/id/district-council/south-lakeland,30/06/2018,Business Support Community Services,Cultural Environmental Regulatory & Planning Services,http://opendatacommunities.org/def/concept/finance/sercop/objective/104,MILNTHORPE KENNELS & CATTERY,08932302,13-06-2018,0000078421,2699.72,0,Stray dog kenneling fees 2018/19,181500,Environment Animal Services
South Lakeland District Council,http://opendatacommunities.org/id/district-council/south-lakeland,30/06/2018,Business Support Community Services,Central Services,http://opendatacommunities.org/def/concept/finance/sercop/objective/102,ADECCO UK LIMITED,00593232,18-06-2018,0000078422,417,0,PAI Technician from 20/11/2017,261400,HR Temporary & Agency Staff
South Lakeland District Council,http://opendatacommunities.org/id/district-council/south-lakeland,30/06/2018,Business Support Community Services,Central Services,http://opendatacommunities.org/def/concept/finance/sercop/objective/102,ADECCO UK LIMITED,00593232,18-06-2018,0000078423,517.08,0,PAI Technician from 20/11/2017,261400,HR Temporary & Agency Staff
South Lakeland District Council,http://opendatacommunities.org/id/district-council/south-lakeland,30/06/2018,Business Support Community Services,Central Services,http://opendatacommunities.org/def/concept/finance/sercop/objective/102,ADECCO UK LIMITED,00593232,18-06-2018,0000078424,358.62,0,PAI Technician from 20/11/2017,261400,HR Temporary & Agency Staff
South Lakeland District Council,http://opendatacommunities.org/id/district-council/south-lakeland,30/06/2018,Policy & Partnerships,Central Services,http://opendatacommunities.org/def/concept/finance/sercop/objective/102,ADECCO UK LIMITED,00593232,18-06-2018,0000078425,446.94,0,Temporary L&D Advisor supporting,261400,HR Temporary & Agency Staff
South Lakeland District Council,http://opendatacommunities.org/id/district-council/south-lakeland,30/06/2018,Policy & Partnerships,Central Services,http://opendatacommunities.org/def/concept/finance/sercop/objective/102,ADECCO UK LIMITED,00593232,18-06-2018,0000078426,558.68,0,Temporary L&D Advisor supporting,261400,HR Temporary & Agency Staff
South Lakeland District Council,http://opendatacommunities.org/id/district-council/south-lakeland,30/06/2018,Business Support Community Services,Central Services,http://opendatacommunities.org/def/concept/finance/sercop/objective/102,ADECCO UK LIMITED,00593232,18-06-2018,0000078427,529.59,0,PAI Technician from 20/11/2017,261400,HR Temporary & Agency Staff
South Lakeland District Council,http://opendatacommunities.org/id/district-council/south-lakeland,30/06/2018,Policy & Partnerships,Central Services,http://opendatacommunities.org/def/concept/finance/sercop/objective/102,ADECCO UK LIMITED,00593232,18-06-2018,0000078428,446.94,0,Temporary L&D Advisor supporting,261400,HR Temporary & Agency Staff
South Lakeland District Council,http://opendatacommunities.org/id/district-council/south-lakeland,30/06/2018,Development Implementation,Central Services,http://opendatacommunities.org/def/concept/finance/sercop/objective/102,CUMBRIA WASTE RECYCLING LTD,03162439,18-06-2018,0000078429,41.75,0,Langstone House 360 ltr Wheelie Bin,182012,Environment Waste Management Recycling
South Lakeland District Council,http://opendatacommunities.org/id/district-council/south-lakeland,30/06/2018,Financial Services,Central Services,http://opendatacommunities.org/def/concept/finance/sercop/objective/102,MARTIN BROKERS (UK) PLC,,13-06-2018,0000078430,5.75,0,Brokerage 25.05.08,200000,Financial Services
South Lakeland District Council,http://opendatacommunities.org/id/district-council/south-lakeland,30/06/2018,Revenues and Benefits,Non-Service Payments,,Ulverston BID Company Ltd,09761005,13-06-2018,0000078431,82437.3,0,BID Levy - Collection figures for April,201700,Financial Services Grants
South Lakeland District Council,http://opendatacommunities.org/id/district-council/south-lakeland,30/06/2018,Development Implementation,Central Services,http://opendatacommunities.org/def/concept/finance/sercop/objective/102,CUMBRIA WASTE RECYCLING LTD,03162439,18-06-2018,0000078439,286.17,0,South Lakeland House Bin & Skip Emptying,182012,Environment Waste Management Recycling
South Lakeland District Council,http://opendatacommunities.org/id/district-council/south-lakeland,30/06/2018,Kendal Town Hall,Cultural Environmental Regulatory & Planning Services,http://opendatacommunities.org/def/concept/finance/sercop/objective/104,CUMBRIA WASTE RECYCLING LTD,03162439,18-06-2018,0000078440,140.4,0,Annual waste collection for Kendal Town,182012,Environment Waste Management Recycling
South Lakeland District Council,http://opendatacommunities.org/id/district-council/south-lakeland,30/06/2018,Leisure and Wellbeing,Highways & Transport Services,http://opendatacommunities.org/def/concept/finance/sercop/objective/107,CUMBRIA WASTE RECYCLING LTD,03162439,18-06-2018,0000078441,54.97,0,660ltr bin at Kendal multi storey car,182012,Environment Waste Management Recycling
South Lakeland District Council,http://opendatacommunities.org/id/district-council/south-lakeland,30/06/2018,Lake Wardens,Cultural Environmental Regulatory & Planning Services,http://opendatacommunities.org/def/concept/finance/sercop/objective/104,CUMBRIA WASTE RECYCLING LTD,03162439,27-06-2018,0000078442,252.74,0,Emptying of Refuse Wheelie Bins at Lake,182012,Environment Waste Management Recycling
South Lakeland District Council,http://opendatacommunities.org/id/district-council/south-lakeland,30/06/2018,Development Implementation,Cultural Environmental Regulatory & Planning Services,http://opendatacommunities.org/def/concept/finance/sercop/objective/104,CUMBRIA WASTE RECYCLING LTD,03162439,18-06-2018,0000078443,136.55,0,"Waste Collection at 124 Highgate,",182012,Environment Waste Management Recycling
South Lakeland District Council,http://opendatacommunities.org/id/district-council/south-lakeland,30/06/2018,Business Support Community Services,Cultural Environmental Regulatory & Planning Services,http://opendatacommunities.org/def/concept/finance/sercop/objective/104,Carrington West,,13-06-2018,0000078445,2709.58,0,Supply of agency staff for post of,159999,Consultancy Not Elsewhere Classified
South Lakeland District Council,http://opendatacommunities.org/id/district-council/south-lakeland,30/06/2018,Human Resources,Cultural Environmental Regulatory & Planning Services,http://opendatacommunities.org/def/concept/finance/sercop/objective/104,ADC Environment Ltd,06212667,18-06-2018,0000078449,169,0,apprentice parks advert,261300,HR Recruitment & Assessment
South Lakeland District Council,http://opendatacommunities.org/id/district-council/south-lakeland,30/06/2018,Business Support Community Services,Cultural Environmental Regulatory & Planning Services,http://opendatacommunities.org/def/concept/finance/sercop/objective/104,ARCO LIMITED,00133804,18-06-2018,0000078450,54.67,0,Cleaning materials,141100,Clothing Protective
South Lakeland District Council,http://opendatacommunities.org/id/district-council/south-lakeland,30/06/2018,Business Support Community Services,Cultural Environmental Regulatory & Planning Services,http://opendatacommunities.org/def/concept/finance/sercop/objective/104,ARCO LIMITED,00133804,18-06-2018,0000078451,295.44,0,Cleaning materials,141100,Clothing Protective
South Lakeland District Council,http://opendatacommunities.org/id/district-council/south-lakeland,30/06/2018,Business Support Community Services,Internal Trading Accounts,,HYDRAIR TRUCK & TRAILER PARTS LTD,,18-06-2018,0000078452,164.48,0,Parts,381500,Vehicle Mgt Parts
South Lakeland District Council,http://opendatacommunities.org/id/district-council/south-lakeland,30/06/2018,Business Support Community Services,Internal Trading Accounts,,HYDRAIR TRUCK & TRAILER PARTS LTD,,18-06-2018,0000078453,51.34,0,Parts,381500,Vehicle Mgt Parts
South Lakeland District Council,http://opendatacommunities.org/id/district-council/south-lakeland,30/06/2018,Business Support Community Services,Internal Trading Accounts,,C T HAYTON LTD,01212766,18-06-2018,0000078454,15.52,0,Cable,391200,Construction Engineering
South Lakeland District Council,http://opendatacommunities.org/id/district-council/south-lakeland,30/06/2018,Business Support Community Services,Internal Trading Accounts,,A & W COMMERCIALS LTD,02630625,18-06-2018,0000078455,220.23,0,Repair oil leak,381400,Vehicle Mgt Maintenance
South Lakeland District Council,http://opendatacommunities.org/id/district-council/south-lakeland,30/06/2018,Business Support Community Services,Internal Trading Accounts,,S J Bargh,00532272,18-06-2018,0000078456,220.98,0,MOTs 2018/19 & vehicle cleaning,381400,Vehicle Mgt Maintenance
South Lakeland District Council,http://opendatacommunities.org/id/district-council/south-lakeland,30/06/2018,Business Support Community Services,Cultural Environmental Regulatory & Planning Services,http://opendatacommunities.org/def/concept/finance/sercop/objective/104,ARCO LIMITED,00133804,18-06-2018,0000078457,61.04,0,Cleaning materials,141100,Clothing Protective
South Lakeland District Council,http://opendatacommunities.org/id/district-council/south-lakeland,30/06/2018,Business Support Community Services,Cultural Environmental Regulatory & Planning Services,http://opendatacommunities.org/def/concept/finance/sercop/objective/104,CUMBRIA WASTE RECYCLING LTD,03162439,18-06-2018,0000078458,70,0,Provision of waste skips at 4 sites for,182012,Environment Waste Management Recycling
South Lakeland District Council,http://opendatacommunities.org/id/district-council/south-lakeland,30/06/2018,Business Support Community Services,Cultural Environmental Regulatory & Planning Services,http://opendatacommunities.org/def/concept/finance/sercop/objective/104,CUMBRIA WASTE RECYCLING LTD,03162439,18-06-2018,0000078459,70,0,Provision of waste skips at 4 sites for,182012,Environment Waste Management Recycling
South Lakeland District Council,http://opendatacommunities.org/id/district-council/south-lakeland,30/06/2018,Business Support Community Services,Cultural Environmental Regulatory & Planning Services,http://opendatacommunities.org/def/concept/finance/sercop/objective/104,CUMBRIA WASTE RECYCLING LTD,03162439,18-06-2018,0000078460,70,0,Provision of waste skips at 4 sites for,182012,Environment Waste Management Recycling
South Lakeland District Council,http://opendatacommunities.org/id/district-council/south-lakeland,30/06/2018,Business Support Community Services,Cultural Environmental Regulatory & Planning Services,http://opendatacommunities.org/def/concept/finance/sercop/objective/104,CUMBRIA WASTE RECYCLING LTD,03162439,18-06-2018,0000078461,70,0,Provision of waste skips at 4 sites for,182012,Environment Waste Management Recycling
South Lakeland District Council,http://opendatacommunities.org/id/district-council/south-lakeland,30/06/2018,Business Support Community Services,Cultural Environmental Regulatory & Planning Services,http://opendatacommunities.org/def/concept/finance/sercop/objective/104,CUMBRIA WASTE RECYCLING LTD,03162439,18-06-2018,0000078462,248,0,Skip emptying at Ecclerigg & Ulverston,182012,Environment Waste Management Recycling
South Lakeland District Council,http://opendatacommunities.org/id/district-council/south-lakeland,30/06/2018,Business Support Community Services,Cultural Environmental Regulatory & Planning Services,http://opendatacommunities.org/def/concept/finance/sercop/objective/104,CUMBRIA WASTE RECYCLING LTD,03162439,18-06-2018,0000078463,1436.32,0,Skip emptying at Ecclerigg & Ulverston,182012,Environment Waste Management Recycling
South Lakeland District Council,http://opendatacommunities.org/id/district-council/south-lakeland,30/06/2018,Business Support Community Services,Internal Trading Accounts,,RIBBLESDALE AUTO ELECTRICS 1992 LTD,02732686,18-06-2018,0000078464,52.5,0,Parts,381500,Vehicle Mgt Parts
South Lakeland District Council,http://opendatacommunities.org/id/district-council/south-lakeland,30/06/2018,Business Support Community Services,Internal Trading Accounts,,COMPASS COMPONENTS,,18-06-2018,0000078465,213.16,0,Consumables 2018/19,101400,Building General Materials
South Lakeland District Council,http://opendatacommunities.org/id/district-council/south-lakeland,30/06/2018,Business Support Community Services,Internal Trading Accounts,,TECHNIJET LTD,02776601,18-06-2018,0000078466,218.69,0,Service & repair pressure washers,139999,Cleaning & Janitorial Not Elsewhere Clas
South Lakeland District Council,http://opendatacommunities.org/id/district-council/south-lakeland,30/06/2018,Business Support Community Services,Internal Trading Accounts,,EK MOTOR FACTORS LTD,00838524,18-06-2018,0000078467,30.38,0,Parts,381400,Vehicle Mgt Maintenance
South Lakeland District Council,http://opendatacommunities.org/id/district-council/south-lakeland,30/06/2018,Business Support Community Services,Internal Trading Accounts,,EK MOTOR FACTORS LTD,00838524,18-06-2018,0000078468,5.95,0,Parts,381400,Vehicle Mgt Maintenance
South Lakeland District Council,http://opendatacommunities.org/id/district-council/south-lakeland,30/06/2018,Social Enterprise Admin,Culture and Related Serv,http://opendatacommunities.org/def/concept/finance/sercop/objective/104,BURGESS ROUGHTON,03082939,18-06-2018,0000078469,3068.75,0,Address questions rasied by tenderers,391114,Construction Buildings Surveys
South Lakeland District Council,http://opendatacommunities.org/id/district-council/south-lakeland,30/06/2018,Business Support Community Services,Internal Trading Accounts,,HYDRAIR TRUCK & TRAILER PARTS LTD,,18-06-2018,0000078470,6.16,0,Parts,381500,Vehicle Mgt Parts
South Lakeland District Council,http://opendatacommunities.org/id/district-council/south-lakeland,30/06/2018,Business Support Community Services,Internal Trading Accounts,,HYDRAIR TRUCK & TRAILER PARTS LTD,,18-06-2018,0000078471,221.16,0,Parts,381500,Vehicle Mgt Parts
South Lakeland District Council,http://opendatacommunities.org/id/district-council/south-lakeland,30/06/2018,Business Support Community Services,Internal Trading Accounts,,CUMBRIA TRUCK CENTRE LTD,04298488,18-06-2018,0000078472,776.06,0,Spring,381300,Vehicle Mgt Industrial
South Lakeland District Council,http://opendatacommunities.org/id/district-council/south-lakeland,30/06/2018,Business Support Community Services,Internal Trading Accounts,,EK MOTOR FACTORS LTD,00838524,18-06-2018,0000078473,12.69,0,Parts,381400,Vehicle Mgt Maintenance
South Lakeland District Council,http://opendatacommunities.org/id/district-council/south-lakeland,30/06/2018,Kendal Town Hall,Cultural Environmental Regulatory & Planning Services,http://opendatacommunities.org/def/concept/finance/sercop/objective/104,THE CATERING PARTNERSHIP,03150517,18-06-2018,0000078474,197.4,0,Attend KTH to dismantle and put,111100,Catering Equipment & Utensils
South Lakeland District Council,http://opendatacommunities.org/id/district-council/south-lakeland,30/06/2018,Business Support Community Services,Internal Trading Accounts,,EK MOTOR FACTORS LTD,00838524,18-06-2018,0000078475,12.69,0,Parts,381400,Vehicle Mgt Maintenance
South Lakeland District Council,http://opendatacommunities.org/id/district-council/south-lakeland,30/06/2018,Business Support Community Services,Internal Trading Accounts,,EK MOTOR FACTORS LTD,00838524,20-06-2018,0000078476,29.04,0,Parts,381400,Vehicle Mgt Maintenance
South Lakeland District Council,http://opendatacommunities.org/id/district-council/south-lakeland,30/06/2018,Business Support Community Services,Internal Trading Accounts,,EK MOTOR FACTORS LTD,00838524,18-06-2018,0000078477,13.61,0,Parts,381400,Vehicle Mgt Maintenance
South Lakeland District Council,http://opendatacommunities.org/id/district-council/south-lakeland,30/06/2018,Business Support Community Services,Internal Trading Accounts,,K S INTERNATIONAL LTD,02703321,18-06-2018,0000078478,30,0,Parts,381500,Vehicle Mgt Parts
South Lakeland District Council,http://opendatacommunities.org/id/district-council/south-lakeland,30/06/2018,Business Support Community Services,Internal Trading Accounts,,K S INTERNATIONAL LTD,02703321,18-06-2018,0000078478,15,0,Parts,381500,Vehicle Mgt Parts
South Lakeland District Council,http://opendatacommunities.org/id/district-council/south-lakeland,30/06/2018,Business Support Community Services,Internal Trading Accounts,,EK MOTOR FACTORS LTD,00838524,18-06-2018,0000078479,67.46,0,Parts,381400,Vehicle Mgt Maintenance
South Lakeland District Council,http://opendatacommunities.org/id/district-council/south-lakeland,30/06/2018,Social Enterprise Admin,Cultural Environmental Regulatory & Planning Services,http://opendatacommunities.org/def/concept/finance/sercop/objective/104,FURNESS NEWSPAPERS LTD,01155841,25-06-2018,0000078480,151.48,0,PUBLIC NOTICES FOR PLANNING 1 APRIL 2015,191000,Facilities Advertising
South Lakeland District Council,http://opendatacommunities.org/id/district-council/south-lakeland,30/06/2018,Social Enterprise Admin,Cultural Environmental Regulatory & Planning Services,http://opendatacommunities.org/def/concept/finance/sercop/objective/104,NEWSQUEST MEDIA GROUP LTD,03102566,18-06-2018,0000078483,412.62,0,PUBLIC NOTICES FOR PLANNING 1 APRIL - 31,191000,Facilities Advertising
South Lakeland District Council,http://opendatacommunities.org/id/district-council/south-lakeland,30/06/2018,Human Resources,Central Services,http://opendatacommunities.org/def/concept/finance/sercop/objective/102,Soopa Doopa Branding Ltd,07550313,18-06-2018,0000078484,278.7,0,Lanyards,191800,Facilities Public Relations & Image
South Lakeland District Council,http://opendatacommunities.org/id/district-council/south-lakeland,30/06/2018,Democratic Services,Central Services,http://opendatacommunities.org/def/concept/finance/sercop/objective/102,NEWSQUEST MEDIA GROUP LTD,03102566,18-06-2018,0000078485,169.28,0,Kirkby Lonsdale Brass Band 07.06.18,191000,Facilities Advertising
South Lakeland District Council,http://opendatacommunities.org/id/district-council/south-lakeland,30/06/2018,Policy & Partnerships,Central Services,http://opendatacommunities.org/def/concept/finance/sercop/objective/102,KENDAL COLLEGE,,18-06-2018,0000078487,1050,0,"Training Course for Word, Excel and",908999,Public Bodies Not Elsewhere Classified
South Lakeland District Council,http://opendatacommunities.org/id/district-council/south-lakeland,30/06/2018,ICT Group,Central Services,http://opendatacommunities.org/def/concept/finance/sercop/objective/102,CWSI UK Ltd,08032836,20-06-2018,0000078493,23336,0,Deliver MDM solution as agreed in the,271300,Information communication Maintenance
South Lakeland District Council,http://opendatacommunities.org/id/district-council/south-lakeland,30/06/2018,Business Support Community Services,Internal Trading Accounts,,DENNIS EAGLE LTD,03794455,18-06-2018,0000078494,190.26,0,Parts,381300,Vehicle Mgt Industrial
South Lakeland District Council,http://opendatacommunities.org/id/district-council/south-lakeland,30/06/2018,Business Support Community Services,Internal Trading Accounts,,EK MOTOR FACTORS LTD,00838524,18-06-2018,0000078496,31.49,0,Parts,381400,Vehicle Mgt Maintenance
South Lakeland District Council,http://opendatacommunities.org/id/district-council/south-lakeland,30/06/2018,Business Support Community Services,Internal Trading Accounts,,TAYLOR ENGINEERING & FABRICATIONS LTD,04989359,18-06-2018,0000078497,48.55,0,Parts,391200,Construction Engineering
South Lakeland District Council,http://opendatacommunities.org/id/district-council/south-lakeland,30/06/2018,Business Support Community Services,Cultural Environmental Regulatory & Planning Services,http://opendatacommunities.org/def/concept/finance/sercop/objective/104,ARCO LIMITED,00133804,18-06-2018,0000078498,54.43,0,Cleaning materials,141100,Clothing Protective
South Lakeland District Council,http://opendatacommunities.org/id/district-council/south-lakeland,30/06/2018,Business Support Community Services,Cultural Environmental Regulatory & Planning Services,http://opendatacommunities.org/def/concept/finance/sercop/objective/104,ARCO LIMITED,00133804,18-06-2018,0000078499,135.71,0,Cleaning materials,141100,Clothing Protective
South Lakeland District Council,http://opendatacommunities.org/id/district-council/south-lakeland,30/06/2018,Revenues and Benefits,Central Services,http://opendatacommunities.org/def/concept/finance/sercop/objective/102,VENN GROUP RECRUITMENT SOLUTIONS,,18-06-2018,0000078500,1063.92,0,Agency Staff - T H,261400,HR Temporary & Agency Staff
South Lakeland District Council,http://opendatacommunities.org/id/district-council/south-lakeland,30/06/2018,Leisure and Wellbeing,Cultural Environmental Regulatory & Planning Services,http://opendatacommunities.org/def/concept/finance/sercop/objective/104,CONTINENTAL LANDSCAPES LTD,2108452,18-06-2018,0000078503,3852.09,0,Gravedigging for April 2018 - March 2019,391310,Construction Open Spaces Construction
South Lakeland District Council,http://opendatacommunities.org/id/district-council/south-lakeland,30/06/2018,Leisure and Wellbeing,Cultural Environmental Regulatory & Planning Services,http://opendatacommunities.org/def/concept/finance/sercop/objective/104,CONTINENTAL LANDSCAPES LTD,2108452,18-06-2018,0000078505,3852.09,0,Gravedigging for April 2018 - March 2019,391310,Construction Open Spaces Construction
South Lakeland District Council,http://opendatacommunities.org/id/district-council/south-lakeland,30/06/2018,Environment and Housing,Housing Services,http://opendatacommunities.org/def/concept/finance/sercop/objective/108,James Andrews Recruitment Solutions,06834852,18-06-2018,0000078509,988.06,0,Payment for J H,261400,HR Temporary & Agency Staff
South Lakeland District Council,http://opendatacommunities.org/id/district-council/south-lakeland,30/06/2018,Business Support Community Services,Housing Services,http://opendatacommunities.org/def/concept/finance/sercop/objective/108,CAPTAIN FRENCH SURGERY,,18-06-2018,0000078510,25,0,Medical report,311600,Healthcare Services
South Lakeland District Council,http://opendatacommunities.org/id/district-council/south-lakeland,30/06/2018,Development Management,Cultural Environmental Regulatory & Planning Services,http://opendatacommunities.org/def/concept/finance/sercop/objective/104,CHRIS BOWKER LTD,01642561,18-06-2018,0000078515,30,0,Checking of electrical,101100,Building Electrical
South Lakeland District Council,http://opendatacommunities.org/id/district-council/south-lakeland,30/06/2018,Development Management,Cultural Environmental Regulatory & Planning Services,http://opendatacommunities.org/def/concept/finance/sercop/objective/104,CHRIS BOWKER LTD,01642561,18-06-2018,0000078516,30,0,Checking of electrical,101100,Building Electrical
South Lakeland District Council,http://opendatacommunities.org/id/district-council/south-lakeland,30/06/2018,Business Support Community Services,Internal Trading Accounts,,VOLVO GROUP UK LTD,02190944,20-06-2018,0000078517,117,0,Parts,381000,Vehicle Mgt Commercial
South Lakeland District Council,http://opendatacommunities.org/id/district-council/south-lakeland,30/06/2018,Printing Section,Central Services,http://opendatacommunities.org/def/concept/finance/sercop/objective/102,PRESCO UK LTD,05923806,18-06-2018,0000078522,90.23,0,7/16th pack of 100 wires,191600,Facilities Printing
South Lakeland District Council,http://opendatacommunities.org/id/district-council/south-lakeland,30/06/2018,Electoral Services,Central Services,http://opendatacommunities.org/def/concept/finance/sercop/objective/102,P & W CONFIDENTIAL BUSINESS SERVICES LTD,,18-06-2018,0000078523,322.75,0,Secure storage and destruction of 2017,182014,Environment Waste Mgt Waste Colln for Re
South Lakeland District Council,http://opendatacommunities.org/id/district-council/south-lakeland,30/06/2018,Business Support Community Services,Internal Trading Accounts,,RIBBLESDALE AUTO ELECTRICS 1992 LTD,02732686,18-06-2018,0000078524,104.54,0,Parts,381500,Vehicle Mgt Parts
South Lakeland District Council,http://opendatacommunities.org/id/district-council/south-lakeland,30/06/2018,Business Support Community Services,Internal Trading Accounts,,RIBBLESDALE AUTO ELECTRICS 1992 LTD,02732686,18-06-2018,0000078525,50.31,0,Parts,381500,Vehicle Mgt Parts
South Lakeland District Council,http://opendatacommunities.org/id/district-council/south-lakeland,30/06/2018,Business Support Community Services,Internal Trading Accounts,,RIBBLESDALE AUTO ELECTRICS 1992 LTD,02732686,18-06-2018,0000078526,112.5,0,Parts,381500,Vehicle Mgt Parts
South Lakeland District Council,http://opendatacommunities.org/id/district-council/south-lakeland,30/06/2018,Business Support Community Services,Internal Trading Accounts,,TECHNIJET LTD,02776601,18-06-2018,0000078527,84.55,0,Service & repair pressure washers,139999,Cleaning & Janitorial Not Elsewhere Clas
South Lakeland District Council,http://opendatacommunities.org/id/district-council/south-lakeland,30/06/2018,Business Support Community Services,Cultural Environmental Regulatory & Planning Services,http://opendatacommunities.org/def/concept/finance/sercop/objective/104,RICARDO-AEA,08229264,18-06-2018,0000078528,1332,0,EMAQ - 6 places,159999,Consultancy Not Elsewhere Classified
South Lakeland District Council,http://opendatacommunities.org/id/district-council/south-lakeland,30/06/2018,Development Implementation,Central Services,http://opendatacommunities.org/def/concept/finance/sercop/objective/102,P & W CONFIDENTIAL BUSINESS SERVICES LTD,,18-06-2018,0000078529,550,0,Disposal of Confidential waste from,182014,Environment Waste Mgt Waste Colln for Re
South Lakeland District Council,http://opendatacommunities.org/id/district-council/south-lakeland,30/06/2018,Development Implementation,Cultural Environmental Regulatory & Planning Services,http://opendatacommunities.org/def/concept/finance/sercop/objective/104,Quadriga Contracts Ltd,02989538,18-06-2018,0000078530,19522.26,0,"Masonry Repair Works at All Hallows,",100000,Building Construction materials
South Lakeland District Council,http://opendatacommunities.org/id/district-council/south-lakeland,30/06/2018,Development Implementation,Cultural Environmental Regulatory & Planning Services,http://opendatacommunities.org/def/concept/finance/sercop/objective/104,Quadriga Contracts Ltd,02989538,18-06-2018,0000078531,185.25,0,"Masonry Repair Works at All Hallows,",100000,Building Construction materials
South Lakeland District Council,http://opendatacommunities.org/id/district-council/south-lakeland,30/06/2018,Development Implementation,External Trading Accounts,,ENVIRONMENT AGENCY,,18-06-2018,0000078532,1580,0,Summerlands Septic Tank Treat Sewage,202100,Financial Services Subscriptions
South Lakeland District Council,http://opendatacommunities.org/id/district-council/south-lakeland,30/06/2018,Business Support Community Services,Cultural Environmental Regulatory & Planning Services,http://opendatacommunities.org/def/concept/finance/sercop/objective/104,A G & P Jackson,,18-06-2018,0000078533,462,0,Agricultural Appraisal at Meadowbank,150000,Consultancy
South Lakeland District Council,http://opendatacommunities.org/id/district-council/south-lakeland,30/06/2018,Democratic Services,Central Services,http://opendatacommunities.org/def/concept/finance/sercop/objective/102,VENN GROUP RECRUITMENT SOLUTIONS,,25-06-2018,0000078536,1981.72,0,Timesheet No L000987263,261400,HR Temporary & Agency Staff
South Lakeland District Council,http://opendatacommunities.org/id/district-council/south-lakeland,30/06/2018,Development Implementation,Central Services,http://opendatacommunities.org/def/concept/finance/sercop/objective/102,MARGARET BARROW INTERIORS LTD T/A MBI,,25-06-2018,0000078537,140,0,1 x Task Chair (M207HA) in black,211200,Furniture & Soft Furn Office Furniture
South Lakeland District Council,http://opendatacommunities.org/id/district-council/south-lakeland,30/06/2018,Development Implementation,Culture and Related Serv,http://opendatacommunities.org/def/concept/finance/sercop/objective/104,Inland Waterways Association,,18-06-2018,0000078538,20000,0,20k Grant Funding Contribution to,181300,Environment Land Protection
South Lakeland District Council,http://opendatacommunities.org/id/district-council/south-lakeland,30/06/2018,Cemeteries Office,Cultural Environmental Regulatory & Planning Services,http://opendatacommunities.org/def/concept/finance/sercop/objective/104,CUMBRIA WASTE RECYCLING LTD,03162439,18-06-2018,0000078544,115.16,0,Cemetery Bin Emptying 2018,182012,Environment Waste Management Recycling
South Lakeland District Council,http://opendatacommunities.org/id/district-council/south-lakeland,30/06/2018,Cemeteries Office,Cultural Environmental Regulatory & Planning Services,http://opendatacommunities.org/def/concept/finance/sercop/objective/104,CUMBRIA WASTE RECYCLING LTD,03162439,18-06-2018,0000078545,64.92,0,Cemetery Bin Emptying 2018,182012,Environment Waste Management Recycling
South Lakeland District Council,http://opendatacommunities.org/id/district-council/south-lakeland,30/06/2018,Cemeteries Office,Cultural Environmental Regulatory & Planning Services,http://opendatacommunities.org/def/concept/finance/sercop/objective/104,CUMBRIA WASTE RECYCLING LTD,03162439,18-06-2018,0000078546,69.04,0,Cemetery Bin Emptying 2018,182012,Environment Waste Management Recycling
South Lakeland District Council,http://opendatacommunities.org/id/district-council/south-lakeland,30/06/2018,Cemeteries Office,Cultural Environmental Regulatory & Planning Services,http://opendatacommunities.org/def/concept/finance/sercop/objective/104,CUMBRIA WASTE RECYCLING LTD,03162439,18-06-2018,0000078547,63.72,0,Cemetery Bin Emptying 2018,182012,Environment Waste Management Recycling
South Lakeland District Council,http://opendatacommunities.org/id/district-council/south-lakeland,30/06/2018,Cemeteries Office,Cultural Environmental Regulatory & Planning Services,http://opendatacommunities.org/def/concept/finance/sercop/objective/104,CUMBRIA WASTE RECYCLING LTD,03162439,18-06-2018,0000078548,111.4,0,Cemetery Bin Emptying 2018,182012,Environment Waste Management Recycling
South Lakeland District Council,http://opendatacommunities.org/id/district-council/south-lakeland,30/06/2018,Cemeteries Office,Cultural Environmental Regulatory & Planning Services,http://opendatacommunities.org/def/concept/finance/sercop/objective/104,CUMBRIA WASTE RECYCLING LTD,03162439,18-06-2018,0000078549,36,0,Cemetery Bin Emptying 2018,182012,Environment Waste Management Recycling
South Lakeland District Council,http://opendatacommunities.org/id/district-council/south-lakeland,30/06/2018,Cemeteries Office,Cultural Environmental Regulatory & Planning Services,http://opendatacommunities.org/def/concept/finance/sercop/objective/104,CUMBRIA WASTE RECYCLING LTD,03162439,18-06-2018,0000078550,41.75,0,Cemetery Bin Emptying 2018,182012,Environment Waste Management Recycling
South Lakeland District Council,http://opendatacommunities.org/id/district-council/south-lakeland,30/06/2018,Business Support Community Services,Cultural Environmental Regulatory & Planning Services,http://opendatacommunities.org/def/concept/finance/sercop/objective/104,Ulverston Coronation Hall,,18-06-2018,0000078551,425,0,HIRE OF THE HALL SUPPER ROOM 2.5 DAYS,291300,Arts & Leisure Services Performing Arts
South Lakeland District Council,http://opendatacommunities.org/id/district-council/south-lakeland,30/06/2018,Democratic Services,Cultural Environmental Regulatory & Planning Services,http://opendatacommunities.org/def/concept/finance/sercop/objective/104,St John's Chambers,,25-06-2018,0000078552,4275,0,Counsel from Mr T L,281200,Legal Services General Support
South Lakeland District Council,http://opendatacommunities.org/id/district-council/south-lakeland,30/06/2018,Business Support Community Services,Internal Trading Accounts,,LANCASHIRE DAF,,18-06-2018,0000078553,528.22,0,Parts,381400,Vehicle Mgt Maintenance
South Lakeland District Council,http://opendatacommunities.org/id/district-council/south-lakeland,30/06/2018,Business Support Community Services,Internal Trading Accounts,,LANCASHIRE DAF,,18-06-2018,0000078554,250,0,Parts,381400,Vehicle Mgt Maintenance
South Lakeland District Council,http://opendatacommunities.org/id/district-council/south-lakeland,30/06/2018,Business Support Community Services,Internal Trading Accounts,,LANCASHIRE DAF,,18-06-2018,0000078555,42.66,0,Parts,381400,Vehicle Mgt Maintenance
South Lakeland District Council,http://opendatacommunities.org/id/district-council/south-lakeland,30/06/2018,Business Support Community Services,Cultural Environmental Regulatory & Planning Services,http://opendatacommunities.org/def/concept/finance/sercop/objective/104,Romaquip UK,,18-06-2018,0000078557,3996,0,RRV vehicle hire,381000,Vehicle Mgt Commercial
South Lakeland District Council,http://opendatacommunities.org/id/district-council/south-lakeland,30/06/2018,Business Support Community Services,Cultural Environmental Regulatory & Planning Services,http://opendatacommunities.org/def/concept/finance/sercop/objective/104,Masterstaff Limited,02777593,20-06-2018,0000078558,4880.03,0,Agency staff,261300,HR Recruitment & Assessment
South Lakeland District Council,http://opendatacommunities.org/id/district-council/south-lakeland,30/06/2018,Community & Housing Group,Housing,http://opendatacommunities.org/def/concept/finance/sercop/objective/108,Helsington Community Land Trust Ltd,IP031277,18-06-2018,0000078559,16022.3,0,Community- LED- Housing Scheme,181300,Environment Land Protection
South Lakeland District Council,http://opendatacommunities.org/id/district-council/south-lakeland,30/06/2018,Legal Services,Cultural Environmental Regulatory & Planning Services,http://opendatacommunities.org/def/concept/finance/sercop/objective/104,ANTHONY COLLINS SOLICITORS,OC313432,18-06-2018,0000078560,406,0,Fees re:  Bring-Site Contract (Street,281300,Legal Services Legal Opinion
South Lakeland District Council,http://opendatacommunities.org/id/district-council/south-lakeland,30/06/2018,Business Support Community Services,Internal Trading Accounts,,M G D LTD,,20-06-2018,0000078563,35,0,MOTs 2018/19,381400,Vehicle Mgt Maintenance
South Lakeland District Council,http://opendatacommunities.org/id/district-council/south-lakeland,30/06/2018,Business Support Community Services,Cultural Environmental Regulatory & Planning Services,http://opendatacommunities.org/def/concept/finance/sercop/objective/104,Lakesloos Ltd,,20-06-2018,0000078564,1470,0,Provide portable toilets from 25/05/18,191510,Facilities Portable Building Hire
South Lakeland District Council,http://opendatacommunities.org/id/district-council/south-lakeland,30/06/2018,Business Support Community Services,Internal Trading Accounts,,Haztec International Ltd,04157886,20-06-2018,0000078565,423.44,0,Beacons,380000,Vehicle Management
South Lakeland District Council,http://opendatacommunities.org/id/district-council/south-lakeland,30/06/2018,Electoral Services,Central Services,http://opendatacommunities.org/def/concept/finance/sercop/objective/102,GATES TRAVEL SERVICE,,27-06-2018,0000078573,164.4,0,2 x train tickets for TB,261600,HR Travel & Subsistence
South Lakeland District Council,http://opendatacommunities.org/id/district-council/south-lakeland,30/06/2018,Development Implementation,Central Services,http://opendatacommunities.org/def/concept/finance/sercop/objective/102,ADECCO UK LIMITED,00593232,20-06-2018,0000078575,76.56,0,Cleaner for SLDC - S D - April 2018,261400,HR Temporary & Agency Staff
South Lakeland District Council,http://opendatacommunities.org/id/district-council/south-lakeland,30/06/2018,Democratic Services,Central Services,http://opendatacommunities.org/def/concept/finance/sercop/objective/102,NORTH WEST EMPLOYERS,,20-06-2018,0000078576,155,0,NW Employers Committee Administrators,261500,HR Training & Conferences
South Lakeland District Council,http://opendatacommunities.org/id/district-council/south-lakeland,30/06/2018,Leisure and Wellbeing,Culture and Related Serv,http://opendatacommunities.org/def/concept/finance/sercop/objective/104,Prescott Special Projects Ltd,,20-06-2018,0000078577,40079.22,0,"For paths, drainage and landscape works",391300,Construction Open Spaces
South Lakeland District Council,http://opendatacommunities.org/id/district-council/south-lakeland,30/06/2018,Development Implementation,Central Services,http://opendatacommunities.org/def/concept/finance/sercop/objective/102,ADECCO UK LIMITED,00593232,20-06-2018,0000078578,267.96,0,Cleaner for SLDC - M P - April,261400,HR Temporary & Agency Staff
South Lakeland District Council,http://opendatacommunities.org/id/district-council/south-lakeland,30/06/2018,Business Support Community Services,Internal Trading Accounts,,Harry Park Tyres Ltd,08131208,20-06-2018,0000078579,1040,0,Tyres,381500,Vehicle Mgt Parts
South Lakeland District Council,http://opendatacommunities.org/id/district-council/south-lakeland,30/06/2018,Business Support Community Services,Internal Trading Accounts,,K & S Commercial Ltd,9068885,20-06-2018,0000078581,85.5,0,Calibrate CWR07,381400,Vehicle Mgt Maintenance
South Lakeland District Council,http://opendatacommunities.org/id/district-council/south-lakeland,30/06/2018,Business Support Community Services,Internal Trading Accounts,,FREIGHT TRANSPORT ASSOCIATION,,20-06-2018,0000078583,296,0,Record books & defect notes,361100,Public Transport Haulage
South Lakeland District Council,http://opendatacommunities.org/id/district-council/south-lakeland,30/06/2018,Business Support Community Services,Cultural Environmental Regulatory & Planning Services,http://opendatacommunities.org/def/concept/finance/sercop/objective/104,RIBBLE FUEL OILS,,20-06-2018,0000078584,1107.76,0,Gas oil 2018/19,381100,Vehicle Mgt Fuel
South Lakeland District Council,http://opendatacommunities.org/id/district-council/south-lakeland,30/06/2018,Business Support Community Services,Cultural Environmental Regulatory & Planning Services,http://opendatacommunities.org/def/concept/finance/sercop/objective/104,BRIAN ARMISTEAD LTD T/A SINKFALL RECYCLI,04133280,20-06-2018,0000078586,2863.8,0,Green waste tipping - 2018/19,391110,Construction Buildings Construction
South Lakeland District Council,http://opendatacommunities.org/id/district-council/south-lakeland,30/06/2018,Business Support Community Services,Housing Services,http://opendatacommunities.org/def/concept/finance/sercop/objective/108,Ashberry Recruitment,07202591,20-06-2018,0000078588,1133.7,0,Agency Support Staff at Town View Fields,261300,HR Recruitment & Assessment
South Lakeland District Council,http://opendatacommunities.org/id/district-council/south-lakeland,30/06/2018,Human Resources,Central Services,http://opendatacommunities.org/def/concept/finance/sercop/objective/102,EMPLOYMENT PAGES LTD,07363099,20-06-2018,0000078590,275.4,0,apprentices advert,261400,HR Temporary & Agency Staff
South Lakeland District Council,http://opendatacommunities.org/id/district-council/south-lakeland,30/06/2018,Business Support Community Services,Cultural Environmental Regulatory & Planning Services,http://opendatacommunities.org/def/concept/finance/sercop/objective/104,Westmorland Youth Orchestra,,25-06-2018,0000078591,800,0,18-19 community grant funding,201700,Financial Services Grants
South Lakeland District Council,http://opendatacommunities.org/id/district-council/south-lakeland,30/06/2018,Revenues and Benefits,Central Services,http://opendatacommunities.org/def/concept/finance/sercop/objective/102,PITNEY BOWES LTD,00182037,25-06-2018,0000078592,199.5,0,2018-19 Stationery & office supplies,301200,Mail Services� Postage
South Lakeland District Council,http://opendatacommunities.org/id/district-council/south-lakeland,30/06/2018,Business Support Community Services,Internal Trading Accounts,,HYDRAIR TRUCK & TRAILER PARTS LTD,,20-06-2018,0000078593,24.87,0,Parts,381500,Vehicle Mgt Parts
South Lakeland District Council,http://opendatacommunities.org/id/district-council/south-lakeland,30/06/2018,Business Support Community Services,Internal Trading Accounts,,FUCHS LUBRICANTS (UK) PLC,02412689,20-06-2018,0000078594,2387.88,0,Oil,381100,Vehicle Mgt Fuel
South Lakeland District Council,http://opendatacommunities.org/id/district-council/south-lakeland,30/06/2018,Business Support Community Services,Internal Trading Accounts,,EK MOTOR FACTORS LTD,00838524,20-06-2018,0000078595,0.64,0,Parts,381400,Vehicle Mgt Maintenance
South Lakeland District Council,http://opendatacommunities.org/id/district-council/south-lakeland,30/06/2018,Business Support Community Services,Internal Trading Accounts,,EK MOTOR FACTORS LTD,00838524,20-06-2018,0000078595,100,0,Parts,381400,Vehicle Mgt Maintenance
South Lakeland District Council,http://opendatacommunities.org/id/district-council/south-lakeland,30/06/2018,Policy & Partnerships,Central Services,http://opendatacommunities.org/def/concept/finance/sercop/objective/102,SOUTH LAKES HOUSING,IP031419,25-06-2018,0000078596,180,0,Room Booking for 4 day IOSH Managing,191700,Facilities Property Management
South Lakeland District Council,http://opendatacommunities.org/id/district-council/south-lakeland,30/06/2018,Business Support Community Services,Internal Trading Accounts,,SOLWAY DAF,1393710,20-06-2018,0000078597,36.77,0,Parts,381000,Vehicle Mgt Commercial
South Lakeland District Council,http://opendatacommunities.org/id/district-council/south-lakeland,30/06/2018,Policy & Partnerships,Central Services,http://opendatacommunities.org/def/concept/finance/sercop/objective/102,SOUTH LAKES HOUSING,IP031419,25-06-2018,0000078598,180,0,Room Booking for 4 day IOSH Managing,191700,Facilities Property Management
South Lakeland District Council,http://opendatacommunities.org/id/district-council/south-lakeland,30/06/2018,Revenues and Benefits,Central Services,http://opendatacommunities.org/def/concept/finance/sercop/objective/102,DX NETWORK SERVICES LTD,05026914,25-06-2018,0000078599,586.64,0,DX Box Subscription Renewal 2018-2019,301000,Mail Services� Couriers
South Lakeland District Council,http://opendatacommunities.org/id/district-council/south-lakeland,30/06/2018,Business Support Community Services,Central Services,http://opendatacommunities.org/def/concept/finance/sercop/objective/102,CUMBRIA COUNTY COUNCIL,,02-07-2018,0000078600,897,0,LAND CHARGE SEARCH ENQUIRIES COMMONS,908000,Public Bodies Council support services
South Lakeland District Council,http://opendatacommunities.org/id/district-council/south-lakeland,30/06/2018,Business Support Community Services,Internal Trading Accounts,,HYDRAIR TRUCK & TRAILER PARTS LTD,,20-06-2018,0000078602,12.08,0,Parts,381500,Vehicle Mgt Parts
South Lakeland District Council,http://opendatacommunities.org/id/district-council/south-lakeland,30/06/2018,Financial Services,Central Services,http://opendatacommunities.org/def/concept/finance/sercop/objective/102,CIPFA,02376684,20-06-2018,0000078603,95,0,TM network workshop Manchester 28.06.18,202100,Financial Services Subscriptions
South Lakeland District Council,http://opendatacommunities.org/id/district-council/south-lakeland,30/06/2018,Business Support Community Services,Internal Trading Accounts,,SOLWAY DAF,1393710,20-06-2018,0000078604,-10,0,Parts,381000,Vehicle Mgt Commercial
South Lakeland District Council,http://opendatacommunities.org/id/district-council/south-lakeland,30/06/2018,Financial Services,Central Services,http://opendatacommunities.org/def/concept/finance/sercop/objective/102,GRANT THORNTON UK LLP,OC307742,20-06-2018,0000078605,13962.75,0,2017/18 Audit Fees,201000,Financial Services Accountancy
South Lakeland District Council,http://opendatacommunities.org/id/district-council/south-lakeland,30/06/2018,Business Support Community Services,Internal Trading Accounts,,SOLWAY DAF,1393710,20-06-2018,0000078606,-10,0,Parts,381000,Vehicle Mgt Commercial
South Lakeland District Council,http://opendatacommunities.org/id/district-council/south-lakeland,30/06/2018,Business Support Community Services,Internal Trading Accounts,,TEAL PATENTS LTD,03212208,20-06-2018,0000078607,480.6,0,Handwash units,111100,Catering Equipment & Utensils
South Lakeland District Council,http://opendatacommunities.org/id/district-council/south-lakeland,30/06/2018,Business Support Community Services,Internal Trading Accounts,,TPS Preston,,20-06-2018,0000078608,274.57,0,Parts,381400,Vehicle Mgt Maintenance
South Lakeland District Council,http://opendatacommunities.org/id/district-council/south-lakeland,30/06/2018,Business Support Community Services,Internal Trading Accounts,,SOLWAY DAF,1393710,20-06-2018,0000078609,28.41,0,Parts,381000,Vehicle Mgt Commercial
South Lakeland District Council,http://opendatacommunities.org/id/district-council/south-lakeland,30/06/2018,Business Support Community Services,Internal Trading Accounts,,DENNIS EAGLE LTD,03794455,20-06-2018,0000078610,90.83,0,Parts,381300,Vehicle Mgt Industrial
South Lakeland District Council,http://opendatacommunities.org/id/district-council/south-lakeland,30/06/2018,Business Support Community Services,Internal Trading Accounts,,K S INTERNATIONAL LTD,02703321,25-06-2018,0000078611,30,0,Parts,381500,Vehicle Mgt Parts
South Lakeland District Council,http://opendatacommunities.org/id/district-council/south-lakeland,30/06/2018,Business Support Community Services,Internal Trading Accounts,,K S INTERNATIONAL LTD,02703321,25-06-2018,0000078611,15,0,Parts,381500,Vehicle Mgt Parts
South Lakeland District Council,http://opendatacommunities.org/id/district-council/south-lakeland,30/06/2018,Business Support Community Services,Internal Trading Accounts,,HAKO MACHINES LIMITED,01414225,20-06-2018,0000078612,150,0,Call out,131000,Cleaning & Janitorial Cleaning Materials
South Lakeland District Council,http://opendatacommunities.org/id/district-council/south-lakeland,30/06/2018,Business Support Community Services,Cultural Environmental Regulatory & Planning Services,http://opendatacommunities.org/def/concept/finance/sercop/objective/104,WESTMORLAND ORCHESTRA,,25-06-2018,0000078613,500,0,18-19 community grant funding,291300,Arts & Leisure Services Performing Arts
South Lakeland District Council,http://opendatacommunities.org/id/district-council/south-lakeland,30/06/2018,Business Support Community Services,Internal Trading Accounts,,HYDRAIR TRUCK & TRAILER PARTS LTD,,20-06-2018,0000078614,196.9,0,Parts,381500,Vehicle Mgt Parts
South Lakeland District Council,http://opendatacommunities.org/id/district-council/south-lakeland,30/06/2018,Business Support Community Services,Internal Trading Accounts,,HYDRAIR TRUCK & TRAILER PARTS LTD,,20-06-2018,0000078615,136.08,0,Parts,381500,Vehicle Mgt Parts
South Lakeland District Council,http://opendatacommunities.org/id/district-council/south-lakeland,30/06/2018,Business Support Community Services,Internal Trading Accounts,,KLEENOIL FILTRATION LTD,02040801,20-06-2018,0000078616,264,0,Filters,101700,Building Heating & Air Conditioning
South Lakeland District Council,http://opendatacommunities.org/id/district-council/south-lakeland,30/06/2018,Environment and Housing,Housing Services,http://opendatacommunities.org/def/concept/finance/sercop/objective/108,Landlord,,25-06-2018,0000078620,1190,0,"Monthly rent ,",202000,Financial Services Rents
South Lakeland District Council,http://opendatacommunities.org/id/district-council/south-lakeland,30/06/2018,Environment and Housing,Housing Services,http://opendatacommunities.org/def/concept/finance/sercop/objective/108,Landlord,,25-06-2018,0000078621,890,0,Monthly rent ,250000,Housing
South Lakeland District Council,http://opendatacommunities.org/id/district-council/south-lakeland,30/06/2018,Environment and Housing,Housing Services,http://opendatacommunities.org/def/concept/finance/sercop/objective/108,Landlord,08672920,25-06-2018,0000078622,400,0,Monthly rent ,202000,Financial Services Rents
South Lakeland District Council,http://opendatacommunities.org/id/district-council/south-lakeland,30/06/2018,Democratic Services,Central Services,http://opendatacommunities.org/def/concept/finance/sercop/objective/102,VENN GROUP RECRUITMENT SOLUTIONS,,20-06-2018,0000078623,1513.07,0, Timesheet No A782100.,261400,HR Temporary & Agency Staff
South Lakeland District Council,http://opendatacommunities.org/id/district-council/south-lakeland,30/06/2018,Leisure and Wellbeing,Culture and Related Serv,http://opendatacommunities.org/def/concept/finance/sercop/objective/104,LUSCOMBE PLANT HIRE LTD,04242248,20-06-2018,0000078624,24500,0,Work to upper tennis court at Lightburn,381205,Vehicle Mgt Heavy Construction Equip
South Lakeland District Council,http://opendatacommunities.org/id/district-council/south-lakeland,30/06/2018,Human Resources,Cultural Environmental Regulatory & Planning Services,http://opendatacommunities.org/def/concept/finance/sercop/objective/104,Countryside Jobs Search,,20-06-2018,0000078625,135,0,countryside jobs publication,261300,HR Recruitment & Assessment
South Lakeland District Council,http://opendatacommunities.org/id/district-council/south-lakeland,30/06/2018,Business Support Community Services,Internal Trading Accounts,,VOLVO GROUP UK LTD,02190944,20-06-2018,0000078626,618.38,0,Parts,381000,Vehicle Mgt Commercial
South Lakeland District Council,http://opendatacommunities.org/id/district-council/south-lakeland,30/06/2018,Business Support Community Services,Internal Trading Accounts,,TAYLOR ENGINEERING & FABRICATIONS LTD,04989359,20-06-2018,0000078628,910.16,0,Parts,391200,Construction Engineering
South Lakeland District Council,http://opendatacommunities.org/id/district-council/south-lakeland,30/06/2018,Business Support Community Services,Internal Trading Accounts,,S J Bargh,00532272,20-06-2018,0000078629,230.98,0,MOTs 2018/19 & vehicle cleaning,381400,Vehicle Mgt Maintenance
South Lakeland District Council,http://opendatacommunities.org/id/district-council/south-lakeland,30/06/2018,Business Support Community Services,Cultural Environmental Regulatory & Planning Services,http://opendatacommunities.org/def/concept/finance/sercop/objective/104,ARCO LIMITED,00133804,20-06-2018,0000078630,8.08,0,Cleaning materials,141100,Clothing Protective
South Lakeland District Council,http://opendatacommunities.org/id/district-council/south-lakeland,30/06/2018,Development Management,Cultural Environmental Regulatory & Planning Services,http://opendatacommunities.org/def/concept/finance/sercop/objective/104,CHRIS BOWKER LTD,01642561,27-06-2018,0000078633,30,0,Checking of electrical,101100,Building Electrical
South Lakeland District Council,http://opendatacommunities.org/id/district-council/south-lakeland,30/06/2018,Printing Section,Central Services,http://opendatacommunities.org/def/concept/finance/sercop/objective/102,Konica Minolta Bus Solutions (UK) Ltd,,20-06-2018,0000078634,40.41,0,Rental and Click Charges for all Konica,192000,Facilities Reprographics
South Lakeland District Council,http://opendatacommunities.org/id/district-council/south-lakeland,30/06/2018,Electoral Services,Central Services,http://opendatacommunities.org/def/concept/finance/sercop/objective/102,ROYAL MAIL GROUP PLC,,25-06-2018,0000078636,7.2,0,Response plus service w/e 9 June - 12,301200,Mail Services� Postage
South Lakeland District Council,http://opendatacommunities.org/id/district-council/south-lakeland,30/06/2018,Business Support Community Services,SLDC as Agent,,CUMBRIA COUNTY COUNCIL,,25-06-2018,0000078637,162,0,DBS Checks for Taxi Drivers,908000,Public Bodies Council support services
South Lakeland District Council,http://opendatacommunities.org/id/district-council/south-lakeland,30/06/2018,Kendal Town Hall,External Trading Accounts,,H & H REEDS PRINTERS LTD,00139166,25-06-2018,0000078638,210,0,2 roll up banners to advertise Kendal,191100,Facilities Design & Photography
South Lakeland District Council,http://opendatacommunities.org/id/district-council/south-lakeland,30/06/2018,Kendal Town Hall,External Trading Accounts,,H & H REEDS PRINTERS LTD,00139166,25-06-2018,0000078639,239,0,2 roll up banners to advertise Kendal,191100,Facilities Design & Photography
South Lakeland District Council,http://opendatacommunities.org/id/district-council/south-lakeland,30/06/2018,Leisure and Wellbeing,Cultural Environmental Regulatory & Planning Services,http://opendatacommunities.org/def/concept/finance/sercop/objective/104,SOUTH LAKES TREE SURGEONS & LANDSCAPES,05342745,25-06-2018,0000078640,325,0,Sedbergh Cemetery,241210,Horticultural Tree Trimming
South Lakeland District Council,http://opendatacommunities.org/id/district-council/south-lakeland,30/06/2018,Human Resources,Central Services,http://opendatacommunities.org/def/concept/finance/sercop/objective/102,HFX LIMITED,08137794,25-06-2018,0000078641,993.5,0,200 flexi cards and carriage,261200,HR Professional & Advisory Services
South Lakeland District Council,http://opendatacommunities.org/id/district-council/south-lakeland,30/06/2018,Business Support Community Services,Cultural Environmental Regulatory & Planning Services,http://opendatacommunities.org/def/concept/finance/sercop/objective/104,Carrington West,,25-06-2018,0000078643,2806.93,0,Supply of agency staff ,159999,Consultancy Not Elsewhere Classified
South Lakeland District Council,http://opendatacommunities.org/id/district-council/south-lakeland,30/06/2018,ICT Group,Central Services,http://opendatacommunities.org/def/concept/finance/sercop/objective/102,THE DOCUMENT MANAGEMENT GROUP LTD,05210023,25-06-2018,0000078644,329,0,Roller Kit for Fi-5900 scanner,191200,Facilities Document Archiving & Storage
South Lakeland District Council,http://opendatacommunities.org/id/district-council/south-lakeland,30/06/2018,Kendal Town Hall,Cultural Environmental Regulatory & Planning Services,http://opendatacommunities.org/def/concept/finance/sercop/objective/104,THE LAUNDRY SHOP LTD,05421366,27-06-2018,0000078645,78.2,0,"To washing, drying amd ironing table",131311,Cleaning & Janitorial Laundry Service
South Lakeland District Council,http://opendatacommunities.org/id/district-council/south-lakeland,30/06/2018,Social Enterprise Admin,Highways & Transport Services,http://opendatacommunities.org/def/concept/finance/sercop/objective/107,ARCO LIMITED,00133804,27-06-2018,0000078651,125.9,0,4 x Selfreez Chewing Gum Remover,141100,Clothing Protective
South Lakeland District Council,http://opendatacommunities.org/id/district-council/south-lakeland,30/06/2018,Social Enterprise Admin,Highways & Transport Services,http://opendatacommunities.org/def/concept/finance/sercop/objective/107,ARCO LIMITED,00133804,27-06-2018,0000078651,32.31,0,4 x Selfreez Chewing Gum Remover,141100,Clothing Protective
South Lakeland District Council,http://opendatacommunities.org/id/district-council/south-lakeland,30/06/2018,Revenues and Benefits,Central Services,http://opendatacommunities.org/def/concept/finance/sercop/objective/102,VENN GROUP RECRUITMENT SOLUTIONS,,27-06-2018,0000078652,1049.04,0,Agency Staff - T Haines A756938,261400,HR Temporary & Agency Staff
South Lakeland District Council,http://opendatacommunities.org/id/district-council/south-lakeland,30/06/2018,Environment and Housing,Housing Services,http://opendatacommunities.org/def/concept/finance/sercop/objective/108,James Andrews Recruitment Solutions,06834852,25-06-2018,0000078656,728.78,0,Payment for J H,261400,HR Temporary & Agency Staff
South Lakeland District Council,http://opendatacommunities.org/id/district-council/south-lakeland,30/06/2018,Financial Services,Central Services,http://opendatacommunities.org/def/concept/finance/sercop/objective/102,Caboodle Technology Ltd,06784632,01-06-2018,0000078657,41.63,0,child care voucher service charge,260000,HR
South Lakeland District Council,http://opendatacommunities.org/id/district-council/south-lakeland,30/06/2018,Social Enterprise Admin,Cultural Environmental Regulatory & Planning Services,http://opendatacommunities.org/def/concept/finance/sercop/objective/104,NEWSQUEST MEDIA GROUP LTD,03102566,27-06-2018,0000078658,253.92,0,PUBLIC NOTICES FOR PLANNING 1 APRIL - 31,191000,Facilities Advertising
South Lakeland District Council,http://opendatacommunities.org/id/district-council/south-lakeland,30/06/2018,Business Support Community Services,SLDC as Agent,,CUMBRIA COUNTY COUNCIL,,25-06-2018,0000078659,108,0,DBS Checks for Taxi Drivers,908000,Public Bodies Council support services
South Lakeland District Council,http://opendatacommunities.org/id/district-council/south-lakeland,30/06/2018,Policy & Partnerships,Central Services,http://opendatacommunities.org/def/concept/finance/sercop/objective/102,The Word Centre,03195753,25-06-2018,0000078660,1340,0,Plain English Writing Training 9th May,261500,HR Training & Conferences
South Lakeland District Council,http://opendatacommunities.org/id/district-council/south-lakeland,30/06/2018,Development Management,Transport Planning Policy,http://opendatacommunities.org/def/concept/finance/sercop/objective/107,LAMBERT SMITH HAMPTON GROUP,2521225,25-06-2018,0000078661,25,0,CIL BCSI ANNUAL UPDATE,999999,Unclassifiable
South Lakeland District Council,http://opendatacommunities.org/id/district-council/south-lakeland,30/06/2018,Business Support Community Services,Central Services,http://opendatacommunities.org/def/concept/finance/sercop/objective/102,INSTITUTE OF LICENSING,04884548,25-06-2018,0000078663,450,0,Membership Fees 2018/19,202100,Financial Services Subscriptions
South Lakeland District Council,http://opendatacommunities.org/id/district-council/south-lakeland,30/06/2018,Development Implementation,Culture and Related Serv,http://opendatacommunities.org/def/concept/finance/sercop/objective/104,Dufell Roofing,01080775,25-06-2018,0000078664,50250.35,0,Kendal Leisure Centre - Roof Replacement,109999,Building Not Elsewhere Classified
South Lakeland District Council,http://opendatacommunities.org/id/district-council/south-lakeland,30/06/2018,Development Implementation,Central Services,http://opendatacommunities.org/def/concept/finance/sercop/objective/102,LAMBERT SMITH HAMPTON GROUP,2521225,25-06-2018,0000078665,44677.48,0,Property Services Contract April -,999999,Unclassifiable
South Lakeland District Council,http://opendatacommunities.org/id/district-council/south-lakeland,30/06/2018,Development Implementation,Environment Regulatory,,LAMBERT SMITH HAMPTON GROUP,2521225,25-06-2018,0000078666,990,0,"Rothay Park, Ambleside - Structural",999999,Unclassifiable
South Lakeland District Council,http://opendatacommunities.org/id/district-council/south-lakeland,30/06/2018,Development Implementation,Culture and Related Serv,http://opendatacommunities.org/def/concept/finance/sercop/objective/104,LAMBERT SMITH HAMPTON GROUP,2521225,25-06-2018,0000078667,2640,0,Braithwaite Fold Caravan Park -,999999,Unclassifiable
South Lakeland District Council,http://opendatacommunities.org/id/district-council/south-lakeland,30/06/2018,Development Implementation,Central Services,http://opendatacommunities.org/def/concept/finance/sercop/objective/102,Maysand Ltd,02912226,25-06-2018,0000078668,7141.29,0,Kendal Town Hall,390000,Construction
South Lakeland District Council,http://opendatacommunities.org/id/district-council/south-lakeland,30/06/2018,Environment and Housing,Housing Services,http://opendatacommunities.org/def/concept/finance/sercop/objective/108,Landlord,,25-06-2018,0000078670,700,0,Monthly rent ,250000,Housing
South Lakeland District Council,http://opendatacommunities.org/id/district-council/south-lakeland,30/06/2018,Democratic and Member Services,Cultural Environmental Regulatory & Planning Services,http://opendatacommunities.org/def/concept/finance/sercop/objective/104,GRANTS- MISCELLANEOUS,,25-06-2018,0000078671,1000,0,locality donation to fund the legal set,201700,Financial Services Grants
South Lakeland District Council,http://opendatacommunities.org/id/district-council/south-lakeland,30/06/2018,Democratic Services,Central Services,http://opendatacommunities.org/def/concept/finance/sercop/objective/102,Solicitors Regulation Authority,,25-06-2018,0000078672,100,0,Training provider application fee.,280000,Legal Services
South Lakeland District Council,http://opendatacommunities.org/id/district-council/south-lakeland,30/06/2018,Democratic and Member Services,Cultural Environmental Regulatory & Planning Services,http://opendatacommunities.org/def/concept/finance/sercop/objective/104,GRANTS- MISCELLANEOUS,,25-06-2018,0000078673,100,0,Locality donation to support a project,201700,Financial Services Grants
South Lakeland District Council,http://opendatacommunities.org/id/district-council/south-lakeland,30/06/2018,Democratic Services,Central Services,http://opendatacommunities.org/def/concept/finance/sercop/objective/102,TLT,,25-06-2018,0000078679,5000,0,Advice on exchange land for New Road,281300,Legal Services Legal Opinion
South Lakeland District Council,http://opendatacommunities.org/id/district-council/south-lakeland,30/06/2018,ICT Group,Central Services,http://opendatacommunities.org/def/concept/finance/sercop/objective/102,SWITCHSHOP LTD,03771032,27-06-2018,0000078682,1322.25,0,HP 5130 48g PEO Switch,270000,Information Communications Technology
South Lakeland District Council,http://opendatacommunities.org/id/district-council/south-lakeland,30/06/2018,Social Enterprise Admin,Highways & Transport Services,http://opendatacommunities.org/def/concept/finance/sercop/objective/107,We Love Logos Ltd,,27-06-2018,0000078686,51.45,0,1 YK 402 Hi Vis Fleece Size XL Colour,141100,Clothing Protective
South Lakeland District Council,http://opendatacommunities.org/id/district-council/south-lakeland,30/06/2018,Social Enterprise Admin,Highways & Transport Services,http://opendatacommunities.org/def/concept/finance/sercop/objective/107,We Love Logos Ltd,,27-06-2018,0000078686,231.84,0,1 YK 402 Hi Vis Fleece Size XL Colour,141100,Clothing Protective
South Lakeland District Council,http://opendatacommunities.org/id/district-council/south-lakeland,30/06/2018,ICT Group,Central Services,http://opendatacommunities.org/def/concept/finance/sercop/objective/102,IT PROFESSIONAL SERVICES (ITPS),,27-06-2018,0000078687,120.17,0,SIP calls not covered by SIP rental,279999,ICT Not Elsewhere Classified
South Lakeland District Council,http://opendatacommunities.org/id/district-council/south-lakeland,30/06/2018,Business Support Community Services,Cultural Environmental Regulatory & Planning Services,http://opendatacommunities.org/def/concept/finance/sercop/objective/104,SEDBERGH PEOPLE'S HALL,,27-06-2018,0000078694,52,0,Hire of hall,201700,Financial Services Grants
South Lakeland District Council,http://opendatacommunities.org/id/district-council/south-lakeland,30/06/2018,Business Support Community Services,Internal Trading Accounts,,EK MOTOR FACTORS LTD,00838524,27-06-2018,0000078695,4.6,0,Parts,381400,Vehicle Mgt Maintenance
South Lakeland District Council,http://opendatacommunities.org/id/district-council/south-lakeland,30/06/2018,Business Support Community Services,Internal Trading Accounts,,AINSWORTH'S GARAGE,,27-06-2018,0000078696,29.25,0,Call outs,381400,Vehicle Mgt Maintenance
South Lakeland District Council,http://opendatacommunities.org/id/district-council/south-lakeland,30/06/2018,Business Support Community Services,Cultural Environmental Regulatory & Planning Services,http://opendatacommunities.org/def/concept/finance/sercop/objective/104,CUMBRIA WASTE RECYCLING LTD,03162439,27-06-2018,0000078697,11300,0,Empty recycling banks in 2018/19,182012,Environment Waste Management Recycling
South Lakeland District Council,http://opendatacommunities.org/id/district-council/south-lakeland,30/06/2018,Business Support Community Services,Cultural Environmental Regulatory & Planning Services,http://opendatacommunities.org/def/concept/finance/sercop/objective/104,CUMBRIA WASTE RECYCLING LTD,03162439,27-06-2018,0000078698,1116.68,0,Empty recycling banks in 2018/19,182012,Environment Waste Management Recycling
South Lakeland District Council,http://opendatacommunities.org/id/district-council/south-lakeland,30/06/2018,Business Support Community Services,Transport Planning Policy,http://opendatacommunities.org/def/concept/finance/sercop/objective/107,ARCO LIMITED,00133804,27-06-2018,0000078699,38.88,0,Cleaning materials,141100,Clothing Protective
South Lakeland District Council,http://opendatacommunities.org/id/district-council/south-lakeland,30/06/2018,Business Support Community Services,Cultural Environmental Regulatory & Planning Services,http://opendatacommunities.org/def/concept/finance/sercop/objective/104,ARCO LIMITED,00133804,27-06-2018,0000078699,8.15,0,Cleaning materials,141100,Clothing Protective
South Lakeland District Council,http://opendatacommunities.org/id/district-council/south-lakeland,30/06/2018,Business Support Community Services,Cultural Environmental Regulatory & Planning Services,http://opendatacommunities.org/def/concept/finance/sercop/objective/104,ARCO LIMITED,00133804,27-06-2018,0000078699,430.31,0,Cleaning materials,141100,Clothing Protective
South Lakeland District Council,http://opendatacommunities.org/id/district-council/south-lakeland,30/06/2018,Business Support Community Services,Cultural Environmental Regulatory & Planning Services,http://opendatacommunities.org/def/concept/finance/sercop/objective/104,ARCO LIMITED,00133804,27-06-2018,0000078700,103.07,0,Cleaning materials,141100,Clothing Protective
South Lakeland District Council,http://opendatacommunities.org/id/district-council/south-lakeland,30/06/2018,Business Support Community Services,Transport Planning Policy,http://opendatacommunities.org/def/concept/finance/sercop/objective/107,ARCO LIMITED,00133804,27-06-2018,0000078701,24.6,0,Cleaning materials,141100,Clothing Protective
South Lakeland District Council,http://opendatacommunities.org/id/district-council/south-lakeland,30/06/2018,Business Support Community Services,Cultural Environmental Regulatory & Planning Services,http://opendatacommunities.org/def/concept/finance/sercop/objective/104,Masterstaff Limited,02777593,27-06-2018,0000078702,5620.35,0,Agency staff,261300,HR Recruitment & Assessment
South Lakeland District Council,http://opendatacommunities.org/id/district-council/south-lakeland,30/06/2018,Business Support Community Services,Internal Trading Accounts,,FURNESS FLUID POWER LTD,05675728,27-06-2018,0000078703,180,0,LOLER test,260000,HR
South Lakeland District Council,http://opendatacommunities.org/id/district-council/south-lakeland,30/06/2018,Business Support Community Services,Internal Trading Accounts,,ETS UK LIMITED,02588203,27-06-2018,0000078704,330,0,Filters,381500,Vehicle Mgt Parts
South Lakeland District Council,http://opendatacommunities.org/id/district-council/south-lakeland,30/06/2018,Business Support Community Services,Internal Trading Accounts,,HYDRAIR TRUCK & TRAILER PARTS LTD,,27-06-2018,0000078705,63.41,0,Parts,381500,Vehicle Mgt Parts
South Lakeland District Council,http://opendatacommunities.org/id/district-council/south-lakeland,30/06/2018,Business Support Community Services,Internal Trading Accounts,,HYDRAIR TRUCK & TRAILER PARTS LTD,,27-06-2018,0000078706,35.04,0,Parts,381500,Vehicle Mgt Parts
South Lakeland District Council,http://opendatacommunities.org/id/district-council/south-lakeland,30/06/2018,Business Support Community Services,Internal Trading Accounts,,HYDRAIR TRUCK & TRAILER PARTS LTD,,27-06-2018,0000078707,61.74,0,Parts,381500,Vehicle Mgt Parts
South Lakeland District Council,http://opendatacommunities.org/id/district-council/south-lakeland,30/06/2018,Business Support Community Services,Internal Trading Accounts,,DENNIS EAGLE LTD,03794455,27-06-2018,0000078708,230.63,0,Parts,381300,Vehicle Mgt Industrial
South Lakeland District Council,http://opendatacommunities.org/id/district-council/south-lakeland,30/06/2018,Business Support Community Services,Internal Trading Accounts,,DENNIS EAGLE LTD,03794455,27-06-2018,0000078710,16,0,Parts,381300,Vehicle Mgt Industrial
South Lakeland District Council,http://opendatacommunities.org/id/district-council/south-lakeland,30/06/2018,Business Support Community Services,Internal Trading Accounts,,Harry Park Tyres Ltd,08131208,27-06-2018,0000078711,42.5,0,Tyres,381500,Vehicle Mgt Parts
South Lakeland District Council,http://opendatacommunities.org/id/district-council/south-lakeland,30/06/2018,Business Support Community Services,Internal Trading Accounts,,Harry Park Tyres Ltd,08131208,27-06-2018,0000078712,30,0,Tyres,381500,Vehicle Mgt Parts
South Lakeland District Council,http://opendatacommunities.org/id/district-council/south-lakeland,30/06/2018,Business Support Community Services,Cultural Environmental Regulatory & Planning Services,http://opendatacommunities.org/def/concept/finance/sercop/objective/104,RPC BPI RECYCLED PRODUCTS,350729,27-06-2018,0000078713,6075.04,0,Black liners - 455x785x990 50/F 400/PK,182013,Environment Waste Mgt Waste Collection
South Lakeland District Council,http://opendatacommunities.org/id/district-council/south-lakeland,30/06/2018,Business Support Community Services,Cultural Environmental Regulatory & Planning Services,http://opendatacommunities.org/def/concept/finance/sercop/objective/104,CARTMEL AGRICULTURAL SOCIETY,,27-06-2018,0000078714,202.5,0,Cartmel Show 2018,291000,Arts & Leisure Services Events
South Lakeland District Council,http://opendatacommunities.org/id/district-council/south-lakeland,30/06/2018,Business Support Community Services,Internal Trading Accounts,,EK MOTOR FACTORS LTD,00838524,27-06-2018,0000078715,5.95,0,Parts,381400,Vehicle Mgt Maintenance
South Lakeland District Council,http://opendatacommunities.org/id/district-council/south-lakeland,30/06/2018,Business Support Community Services,Internal Trading Accounts,,HYDRAIR TRUCK & TRAILER PARTS LTD,,27-06-2018,0000078716,204,0,Parts,381500,Vehicle Mgt Parts
South Lakeland District Council,http://opendatacommunities.org/id/district-council/south-lakeland,30/06/2018,Business Support Community Services,Internal Trading Accounts,,SOLWAY DAF,1393710,27-06-2018,0000078717,258.43,0,Parts,381000,Vehicle Mgt Commercial
South Lakeland District Council,http://opendatacommunities.org/id/district-council/south-lakeland,30/06/2018,Business Support Community Services,Internal Trading Accounts,,TAYLOR ENGINEERING & FABRICATIONS LTD,04989359,27-06-2018,0000078718,61.1,0,Parts,391200,Construction Engineering
South Lakeland District Council,http://opendatacommunities.org/id/district-council/south-lakeland,30/06/2018,Democratic and Member Services,Central Services,http://opendatacommunities.org/def/concept/finance/sercop/objective/102,RIVERBANK HOSPITALITY CATERING,,27-06-2018,0000078719,48,0,buffet for planning workshop 21 June,111000,Catering Banquet & Catering
South Lakeland District Council,http://opendatacommunities.org/id/district-council/south-lakeland,30/06/2018,Cemeteries Office,Cultural Environmental Regulatory & Planning Services,http://opendatacommunities.org/def/concept/finance/sercop/objective/104,GLASDON UK LTD,02160576,02-07-2018,0000078720,1620,0,4 off LOWTHER with brown enviropol,109999,Building Not Elsewhere Classified
South Lakeland District Council,http://opendatacommunities.org/id/district-council/south-lakeland,30/06/2018,Westmorland Centre Parking Office,Highways & Transport Services,http://opendatacommunities.org/def/concept/finance/sercop/objective/107,LOOMIS UK LTD,03200432,27-06-2018,0000078722,1028.82,0,Cash collecting (July - September),192200,Facilities Security
South Lakeland District Council,http://opendatacommunities.org/id/district-council/south-lakeland,30/06/2018,Development Strategy,Cultural Environmental Regulatory & Planning Services,http://opendatacommunities.org/def/concept/finance/sercop/objective/104,LAMBERT SMITH HAMPTON GROUP,2521225,27-06-2018,0000078723,587.5,0,Up to 40 hours of professional support,999999,Unclassifiable
South Lakeland District Council,http://opendatacommunities.org/id/district-council/south-lakeland,30/06/2018,Development Implementation,Cultural Environmental Regulatory & Planning Services,http://opendatacommunities.org/def/concept/finance/sercop/objective/104,Ulverston Community Enterprises Ltd,08904327,27-06-2018,0000078724,26948,0,Grant Agreement 2018/19 (4 x Quarterly,201700,Financial Services Grants
South Lakeland District Council,http://opendatacommunities.org/id/district-council/south-lakeland,30/06/2018,Business Support Community Services,Cultural Environmental Regulatory & Planning Services,http://opendatacommunities.org/def/concept/finance/sercop/objective/104,Carrington West,,27-06-2018,0000078725,2693.35,0,Supply of agency staff,159999,Consultancy Not Elsewhere Classified
South Lakeland District Council,http://opendatacommunities.org/id/district-council/south-lakeland,30/06/2018,Business Support Community Services,Cultural Environmental Regulatory & Planning Services,http://opendatacommunities.org/def/concept/finance/sercop/objective/104,Jon Etchells Consulting Ltd,4884334,27-06-2018,0000078726,3648.65,0, SL/2017/0318,152050,Consultancy Property
South Lakeland District Council,http://opendatacommunities.org/id/district-council/south-lakeland,30/06/2018,Democratic Services,Central Services,http://opendatacommunities.org/def/concept/finance/sercop/objective/102,VENN GROUP RECRUITMENT SOLUTIONS,,27-06-2018,0000078727,401.7,0, Timesheet No A785126,261400,HR Temporary & Agency Staff
South Lakeland District Council,http://opendatacommunities.org/id/district-council/south-lakeland,30/06/2018,Democratic Services,Central Services,http://opendatacommunities.org/def/concept/finance/sercop/objective/102,VENN GROUP RECRUITMENT SOLUTIONS,,27-06-2018,0000078728,80.34,0, Timesheet No A785126,261400,HR Temporary & Agency Staff
South Lakeland District Council,http://opendatacommunities.org/id/district-council/south-lakeland,30/06/2018,Development Implementation,Central Services,http://opendatacommunities.org/def/concept/finance/sercop/objective/102,LAMBERT SMITH HAMPTON GROUP,2521225,27-06-2018,0000078730,-750,0,Kendal Town Hall - Stonework Repairs,999999,Unclassifiable
South Lakeland District Council,http://opendatacommunities.org/id/district-council/south-lakeland,30/06/2018,Development Implementation,Environment Regulatory,,LAMBERT SMITH HAMPTON GROUP,2521225,27-06-2018,0000078731,1400,0,"Rothay Park, Ambleside - Structural",999999,Unclassifiable
South Lakeland District Council,http://opendatacommunities.org/id/district-council/south-lakeland,30/06/2018,Development Implementation,SLDC as Agent,,Cactus Creative Ltd,04198363,27-06-2018,0000078732,240,0,Business & Events Website Development,191000,Facilities Advertising
South Lakeland District Council,http://opendatacommunities.org/id/district-council/south-lakeland,30/06/2018,Printing Section,Central Services,http://opendatacommunities.org/def/concept/finance/sercop/objective/102,PRESCO UK LTD,05923806,27-06-2018,0000078733,48.19,0,Red Double sided tape (strengh 6) 12mm,191600,Facilities Printing
South Lakeland District Council,http://opendatacommunities.org/id/district-council/south-lakeland,30/06/2018,Social Enterprise Admin,Cultural Environmental Regulatory & Planning Services,http://opendatacommunities.org/def/concept/finance/sercop/objective/104,SUN SIGNS,04413045,27-06-2018,0000078734,92.55,0,2 x Option A Banner 500mm x 2000mm with,102400,Building Signage
South Lakeland District Council,http://opendatacommunities.org/id/district-council/south-lakeland,30/06/2018,Lake Wardens,Cultural Environmental Regulatory & Planning Services,http://opendatacommunities.org/def/concept/finance/sercop/objective/104,TYPHOON INTERNATIONAL LTD,00462364,02-07-2018,0000078735,169.48,0,"Test, Inspection & Service of Typhoon",331300,Sports Sports Equipment
South Lakeland District Council,http://opendatacommunities.org/id/district-council/south-lakeland,30/06/2018,Leisure and Wellbeing,Highways & Transport Services,http://opendatacommunities.org/def/concept/finance/sercop/objective/107,SOUTH LAKES TREE SURGEONS & LANDSCAPES,05342745,27-06-2018,0000078736,140,0,For the removal of a broken branch from,241210,Horticultural Tree Trimming
South Lakeland District Council,http://opendatacommunities.org/id/district-council/south-lakeland,30/06/2018,Revenues and Benefits,Central Services,http://opendatacommunities.org/def/concept/finance/sercop/objective/102,PITNEY BOWES LTD,00182037,27-06-2018,0000078737,562.5,0,2018-19 Stationery & office supplies,301200,Mail Services� Postage
South Lakeland District Council,http://opendatacommunities.org/id/district-council/south-lakeland,30/06/2018,Development Strategy,Cultural Environmental Regulatory & Planning Services,http://opendatacommunities.org/def/concept/finance/sercop/objective/104,King's Church Kendal,,27-06-2018,0000078740,16,0,Shakespeare Centre room hire,192110,Facilities Room Hire
South Lakeland District Council,http://opendatacommunities.org/id/district-council/south-lakeland,30/06/2018,Democratic Services,Cultural Environmental Regulatory & Planning Services,http://opendatacommunities.org/def/concept/finance/sercop/objective/104,St John's Chambers,,02-07-2018,0000078741,9000,0,Counsel from Mr T L,281200,Legal Services General Support
South Lakeland District Council,http://opendatacommunities.org/id/district-council/south-lakeland,30/06/2018,Business Support Community Services,SLDC as Agent,,CUMBRIA COUNTY COUNCIL,,27-06-2018,0000078743,54,0,DBS Checks for Taxi Drivers,908000,Public Bodies Council support services
South Lakeland District Council,http://opendatacommunities.org/id/district-council/south-lakeland,30/06/2018,Business Support Community Services,SLDC as Agent,,CUMBRIA COUNTY COUNCIL,,27-06-2018,0000078745,54,0,DBS Checks for Taxi Drivers,908000,Public Bodies Council support services
South Lakeland District Council,http://opendatacommunities.org/id/district-council/south-lakeland,30/06/2018,Leisure and Wellbeing,Cultural Environmental Regulatory & Planning Services,http://opendatacommunities.org/def/concept/finance/sercop/objective/104,SOUTH LAKES TREE SURGEONS & LANDSCAPES,05342745,27-06-2018,0000078747,390,0,Dead wooding and crown cleaning of ash,241210,Horticultural Tree Trimming
South Lakeland District Council,http://opendatacommunities.org/id/district-council/south-lakeland,30/06/2018,Revenues and Benefits,Central Services,http://opendatacommunities.org/def/concept/finance/sercop/objective/102,ROYAL MAIL GROUP PLC,,27-06-2018,0000078753,106.4,0,2018-19 Postal Charges a/c 0055114000,301200,Mail Services� Postage
South Lakeland District Council,http://opendatacommunities.org/id/district-council/south-lakeland,30/06/2018,Revenues and Benefits,SLDC as Agent,,ROYAL MAIL GROUP PLC,,27-06-2018,0000078754,1204.28,0,2018-19 Postal Charges a/c 0198123013,301200,Mail Services� Postage
South Lakeland District Council,http://opendatacommunities.org/id/district-council/south-lakeland,30/06/2018,Revenues and Benefits,SLDC as Agent,,ROYAL MAIL GROUP PLC,,27-06-2018,0000078755,1327.34,0,2018-19 Postal Charges a/c 0198123013,301200,Mail Services� Postage
South Lakeland District Council,http://opendatacommunities.org/id/district-council/south-lakeland,30/06/2018,Revenues and Benefits,Central Services,http://opendatacommunities.org/def/concept/finance/sercop/objective/102,CAPITA BUSINESS SERVICES LTD (NCR),,01-06-2018,0000078756,2954.79,0,2018-19 Internet Payment / bank charges,261500,HR Training & Conferences
South Lakeland District Council,http://opendatacommunities.org/id/district-council/south-lakeland,30/06/2018,Development Implementation,Cultural Environmental Regulatory & Planning Services,http://opendatacommunities.org/def/concept/finance/sercop/objective/104,CUMBRIA COUNTY COUNCIL,,02-07-2018,0000078758,20000,0,Kendal Strategic Infrastructure Study,908000,Public Bodies Council support services
South Lakeland District Council,http://opendatacommunities.org/id/district-council/south-lakeland,30/06/2018,Kendal Town Hall,Cultural Environmental Regulatory & Planning Services,http://opendatacommunities.org/def/concept/finance/sercop/objective/104,ALEXANDRA PLC,,27-06-2018,0000078759,27.9,0,1 pair of navy trousers NM368 34 inch,141300,Clothing Uniforms
South Lakeland District Council,http://opendatacommunities.org/id/district-council/south-lakeland,30/06/2018,Kendal Town Hall,Cultural Environmental Regulatory & Planning Services,http://opendatacommunities.org/def/concept/finance/sercop/objective/104,ALEXANDRA PLC,,27-06-2018,0000078760,16.2,0,1 pair of navy trousers NM368 34 inch,141300,Clothing Uniforms
South Lakeland District Council,http://opendatacommunities.org/id/district-council/south-lakeland,30/06/2018,ICT Group,Central Services,http://opendatacommunities.org/def/concept/finance/sercop/objective/102,BRITISH TELECOMMUNICATIONS PLC (DD),,01-06-2018,0000078761,72.81,0,Town View Fields Broadband,279999,ICT Not Elsewhere Classified
South Lakeland District Council,http://opendatacommunities.org/id/district-council/south-lakeland,30/06/2018,ICT Group,Central Services,http://opendatacommunities.org/def/concept/finance/sercop/objective/102,DEMON (VODAFONE),,27-06-2018,0000078762,60,0,Domain Registration/Hosting,271700,ICT Telecommunications Fixed
South Lakeland District Council,http://opendatacommunities.org/id/district-council/south-lakeland,30/06/2018,Business Support Community Services,Internal Trading Accounts,,RIBBLESDALE AUTO ELECTRICS 1992 LTD,02732686,27-06-2018,0000078763,17.5,0,Parts,381500,Vehicle Mgt Parts
South Lakeland District Council,http://opendatacommunities.org/id/district-council/south-lakeland,30/06/2018,Development Implementation,Central Services,http://opendatacommunities.org/def/concept/finance/sercop/objective/102,ADECCO UK LIMITED,00593232,02-07-2018,0000078764,76.56,0,Cleaner for SLDC - S D - April 2018,261400,HR Temporary & Agency Staff
South Lakeland District Council,http://opendatacommunities.org/id/district-council/south-lakeland,30/06/2018,Development Implementation,Central Services,http://opendatacommunities.org/def/concept/finance/sercop/objective/102,ADECCO UK LIMITED,00593232,02-07-2018,0000078765,216.92,0,Cleaner for SLDC - M P - April,261400,HR Temporary & Agency Staff
South Lakeland District Council,http://opendatacommunities.org/id/district-council/south-lakeland,30/06/2018,Policy & Partnerships,Central Services,http://opendatacommunities.org/def/concept/finance/sercop/objective/102,ACT NOW TRAINING LTD,04524979,02-07-2018,0000078766,29.99,0,Act Now Training GDPR Handbook for,261500,HR Training & Conferences
South Lakeland District Council,http://opendatacommunities.org/id/district-council/south-lakeland,30/06/2018,Environment and Housing,Housing Services,http://opendatacommunities.org/def/concept/finance/sercop/objective/108,James Andrews Recruitment Solutions,06834852,02-07-2018,0000078767,1023.1,0,Payment for J H,261400,HR Temporary & Agency Staff
South Lakeland District Council,http://opendatacommunities.org/id/district-council/south-lakeland,30/06/2018,Business Support Community Services,Housing Services,http://opendatacommunities.org/def/concept/finance/sercop/objective/108,KENDAL HOSTEL,,02-07-2018,0000078768,320,0,Accommodation for,261000,HR Accommodation
South Lakeland District Council,http://opendatacommunities.org/id/district-council/south-lakeland,30/06/2018,Development Implementation,Central Services,http://opendatacommunities.org/def/concept/finance/sercop/objective/102,ADECCO UK LIMITED,00593232,02-07-2018,0000078769,306.24,0,Cleaner for SLDC - M P - April,261400,HR Temporary & Agency Staff
South Lakeland District Council,http://opendatacommunities.org/id/district-council/south-lakeland,30/06/2018,Development Implementation,Central Services,http://opendatacommunities.org/def/concept/finance/sercop/objective/102,ADECCO UK LIMITED,00593232,02-07-2018,0000078770,76.56,0,Cleaner for SLDC - S D - April 2018,261400,HR Temporary & Agency Staff
South Lakeland District Council,http://opendatacommunities.org/id/district-council/south-lakeland,30/06/2018,Business Support Community Services,Central Services,http://opendatacommunities.org/def/concept/finance/sercop/objective/102,ADECCO UK LIMITED,00593232,02-07-2018,0000078771,533.76,0,PAI Technician from 20/11/2017,261400,HR Temporary & Agency Staff
South Lakeland District Council,http://opendatacommunities.org/id/district-council/south-lakeland,30/06/2018,Business Support Community Services,Central Services,http://opendatacommunities.org/def/concept/finance/sercop/objective/102,ADECCO UK LIMITED,00593232,02-07-2018,0000078773,529.59,0,PAI Technician from 20/11/2017,261400,HR Temporary & Agency Staff
South Lakeland District Council,http://opendatacommunities.org/id/district-council/south-lakeland,30/06/2018,Development Implementation,Cultural Environmental Regulatory & Planning Services,http://opendatacommunities.org/def/concept/finance/sercop/objective/104,ADECCO UK LIMITED,00593232,02-07-2018,0000078774,352.32,0,Economic Development Programme Support,261400,HR Temporary & Agency Staff
South Lakeland District Council,http://opendatacommunities.org/id/district-council/south-lakeland,30/06/2018,Business Support Community Services,Housing Services,http://opendatacommunities.org/def/concept/finance/sercop/objective/108,PHS GROUP PLC,,02-07-2018,0000078776,700.76,0,Sanitary and non-hazardous disposal,131312,Cleaning & Janitorial Washroom Sanitat
South Lakeland District Council,http://opendatacommunities.org/id/district-council/south-lakeland,30/06/2018,Environment and Housing,Housing Services,http://opendatacommunities.org/def/concept/finance/sercop/objective/108,Landlord,,02-07-2018,0000078777,400,0,"Monthly rent ,",250000,Housing
South Lakeland District Council,http://opendatacommunities.org/id/district-council/south-lakeland,30/06/2018,Environment and Housing,Housing Services,http://opendatacommunities.org/def/concept/finance/sercop/objective/108,Landlord,,02-07-2018,0000078778,410,0,Monthly rent ,250000,Housing
South Lakeland District Council,http://opendatacommunities.org/id/district-council/south-lakeland,30/06/2018,Environment and Housing,Housing Services,http://opendatacommunities.org/def/concept/finance/sercop/objective/108,Landlord,,02-07-2018,0000078779,415,0,Monthly rent,250010,Housing Letting Agents
South Lakeland District Council,http://opendatacommunities.org/id/district-council/south-lakeland,30/06/2018,Environment and Housing,Housing Services,http://opendatacommunities.org/def/concept/finance/sercop/objective/108,Landlord,07009105,02-07-2018,0000078780,480,0,Monthly rent,250000,Housing
South Lakeland District Council,http://opendatacommunities.org/id/district-council/south-lakeland,30/06/2018,Environment and Housing,Housing Services,http://opendatacommunities.org/def/concept/finance/sercop/objective/108,Landlord,,02-07-2018,0000078781,500,0,"Monthly rent ,",202000,Financial Services Rents
South Lakeland District Council,http://opendatacommunities.org/id/district-council/south-lakeland,30/06/2018,Environment and Housing,Housing Services,http://opendatacommunities.org/def/concept/finance/sercop/objective/108,Landlord,,02-07-2018,0000078782,520,0,Monthly rent ,250000,Housing
South Lakeland District Council,http://opendatacommunities.org/id/district-council/south-lakeland,30/06/2018,Business Support Community Services,Cultural Environmental Regulatory & Planning Services,http://opendatacommunities.org/def/concept/finance/sercop/objective/104,Greenwich Leisure Ltd,,02-07-2018,0000078783,10000,0,Active Communities Fund,291400,Arts & Leisure Services Sport & Fitness
South Lakeland District Council,http://opendatacommunities.org/id/district-council/south-lakeland,30/06/2018,Business Support Community Services,Cultural Environmental Regulatory & Planning Services,http://opendatacommunities.org/def/concept/finance/sercop/objective/104,Greenwich Leisure Ltd,,02-07-2018,0000078784,5000,0,"Contribution to ""Swim Safe""",291400,Arts & Leisure Services Sport & Fitness
South Lakeland District Council,http://opendatacommunities.org/id/district-council/south-lakeland,30/06/2018,Financial Services,Central Services,http://opendatacommunities.org/def/concept/finance/sercop/objective/102,DUE NORTH LTD,04499218,02-07-2018,0000078788,2140,0,Licence for Procontract The Chest,271600,ICT Software Customised & Bespoke
South Lakeland District Council,http://opendatacommunities.org/id/district-council/south-lakeland,30/06/2018,Development Management,Cultural Environmental Regulatory & Planning Services,http://opendatacommunities.org/def/concept/finance/sercop/objective/104,LABC NORTHERN,,02-07-2018,0000078789,125,0,Annual subscription to LABC Northern,109999,Building Not Elsewhere Classified
South Lakeland District Council,http://opendatacommunities.org/id/district-council/south-lakeland,30/06/2018,Development Management,Cultural Environmental Regulatory & Planning Services,http://opendatacommunities.org/def/concept/finance/sercop/objective/104,LABC NORTHERN,,02-07-2018,0000078789,75,0,Annual subscription to LABC Northern,109999,Building Not Elsewhere Classified
South Lakeland District Council,http://opendatacommunities.org/id/district-council/south-lakeland,30/06/2018,Lake Wardens,Cultural Environmental Regulatory & Planning Services,http://opendatacommunities.org/def/concept/finance/sercop/objective/104,CUMBRIA WASTE RECYCLING LTD,03162439,02-07-2018,0000078792,273.26,0,Emptying of Refuse Wheelie Bins at Lake,182012,Environment Waste Management Recycling
South Lakeland District Council,http://opendatacommunities.org/id/district-council/south-lakeland,30/06/2018,Revenues and Benefits,Central Services,http://opendatacommunities.org/def/concept/finance/sercop/objective/102,VENN GROUP RECRUITMENT SOLUTIONS,,02-07-2018,0000078793,850.54,0,Agency Staff - T H A756938,261400,HR Temporary & Agency Staff
South Lakeland District Council,http://opendatacommunities.org/id/district-council/south-lakeland,30/06/2018,Environment and Housing,Housing Services,http://opendatacommunities.org/def/concept/finance/sercop/objective/108,GATES TRAVEL SERVICE,,02-07-2018,0000078794,35.6,0,"Travel Warrant from Kendal to Kirkby,",261600,HR Travel & Subsistence
South Lakeland District Council,http://opendatacommunities.org/id/district-council/south-lakeland,30/06/2018,Social Enterprise Admin,Highways & Transport Services,http://opendatacommunities.org/def/concept/finance/sercop/objective/107,BEMROSE BOOTH PARAGON LTD,04891375,02-07-2018,0000078796,2068,0,"350,000 Aura Self Adhesive Pay and",191600,Facilities Printing
South Lakeland District Council,http://opendatacommunities.org/id/district-council/south-lakeland,30/06/2018,Revenues and Benefits,SLDC as Agent,,ROYAL MAIL GROUP PLC,,02-07-2018,0000078798,1949.02,0,2018-19 Postal Charges a/c 0198123013,301200,Mail Services� Postage
South Lakeland District Council,http://opendatacommunities.org/id/district-council/south-lakeland,30/06/2018,Leisure and Wellbeing,Cultural Environmental Regulatory & Planning Services,http://opendatacommunities.org/def/concept/finance/sercop/objective/104,BREWERY ARTS CENTRE,,02-07-2018,0000078801,1000,0,Lakes Culture - Cultural Destinations,291000,Arts & Leisure Services Events
South Lakeland District Council,http://opendatacommunities.org/id/district-council/south-lakeland,30/06/2018,Development Implementation,Cultural Environmental Regulatory & Planning Services,http://opendatacommunities.org/def/concept/finance/sercop/objective/104,ORMROD SIGNS LTD,04533430,02-07-2018,0000078802,305,0,Signs for Mintworks - 8 x Parking Signs,102400,Building Signage
South Lakeland District Council,http://opendatacommunities.org/id/district-council/south-lakeland,30/06/2018,Human Resources,Central Services,http://opendatacommunities.org/def/concept/finance/sercop/objective/102,FORBES SOLICITORS,,02-07-2018,0000078817,835.5,0,Forbes Invoice Number: 500646,281300,Legal Services Legal Opinion
South Lakeland District Council,http://opendatacommunities.org/id/district-council/south-lakeland,30/06/2018,Human Resources,Central Services,http://opendatacommunities.org/def/concept/finance/sercop/objective/102,FORBES SOLICITORS,,02-07-2018,0000078818,227.5,0,Forbes Invoice Number: 500646,281300,Legal Services Legal Opinion
South Lakeland District Council,http://opendatacommunities.org/id/district-council/south-lakeland,30/06/2018,Human Resources,Central Services,http://opendatacommunities.org/def/concept/finance/sercop/objective/102,NORTH WEST EMPLOYERS,,02-07-2018,0000078819,4488.61,0,Membership employers 18/19,261500,HR Training & Conferences
